{"text_format":"1","workbook":"xlsx","n_sheets":1,"sheets":["IMPACT"],"not_rendered":{"charts":0,"images":1,"macros":1,"external_links":0,"defined_names":5,"comments":0,"pivot_tables":0},"unopened":[],"bounds":{"document_bytes":16777216,"sheet_cells":100000,"rows_first":2000,"rows_last":500,"rows_between":2000,"halvings":0,"cell_chars":16384,"cell_head_chars":4096},"cells_cut":0,"cells_raw":0,"read":"whole","date_system":"1900"}

{"sheet":"IMPACT","index":0,"n_rows":213,"n_cols":20,"rows_kept":213,"cut":false,"hidden":false,"merged":[[164,4,165,5],[108,4,108,7],[132,4,132,6],[126,0,127,0],[128,0,129,0],[138,4,138,7],[121,1,121,2],[121,4,121,7],[134,0,135,0],[136,0,137,0],[131,0,131,2],[131,4,131,7],[122,0,122,7],[119,0,119,3],[117,0,118,0],[117,3,118,4],[29,1,29,2],[29,4,29,6],[35,0,35,2],[36,0,36,2],[37,1,37,2],[37,4,37,6],[65,1,65,2],[65,4,65,6],[71,1,71,2],[71,4,71,6],[69,0,69,2],[70,0,70,2],[36,4,36,7],[38,0,38,7],[35,4,35,7],[63,4,63,7],[63,0,63,2],[39,0,39,7],[45,0,46,0],[42,0,43,0],[64,0,64,2],[66,0,66,7],[41,0,41,7],[40,0,40,7],[20,4,20,7],[21,1,21,2],[21,4,21,6],[19,0,19,2],[20,0,20,2],[27,0,27,2],[27,4,27,7],[28,0,28,2],[28,4,28,7],[47,0,48,0],[49,0,50,0],[51,0,52,0],[98,1,98,2],[98,4,98,6],[103,0,104,0],[96,0,96,3],[105,0,106,0],[64,4,64,7],[53,0,54,0],[55,0,56,0],[57,0,58,0],[59,0,60,0],[61,0,62,0],[80,1,80,2],[80,4,80,6],[67,0,68,0],[78,4,78,7],[79,0,79,3],[79,4,79,7],[86,4,86,6],[88,4,89,5],[90,0,90,3],[69,4,69,7],[70,4,70,7],[76,0,77,1],[76,4,77,5],[82,0,83,1],[82,4,83,5],[109,1,109,2],[109,4,109,6],[119,4,119,7],[72,0,72,7],[73,0,73,7],[97,0,97,3],[97,4,97,7],[107,0,107,3],[107,4,107,7],[90,4,90,7],[84,0,84,3],[84,4,84,7],[78,0,78,3],[99,0,99,7],[91,0,91,3],[91,4,91,7],[93,0,93,7],[92,1,92,2],[92,4,92,7],[85,0,85,3],[85,4,85,7],[88,0,89,1],[100,0,100,7],[94,0,95,1],[94,4,95,5],[86,1,86,2],[111,7,112,7],[115,1,115,2],[111,0,112,0],[111,3,112,4],[115,4,115,7],[114,0,114,3],[113,0,113,3],[113,4,113,7],[114,4,114,7],[0,1,0,7],[1,1,1,7],[3,0,3,1],[4,0,4,1],[5,0,5,1],[6,0,6,1],[12,0,12,3],[9,0,9,7],[19,4,19,7],[14,0,14,7],[6,2,6,7],[3,2,3,3],[4,2,4,3],[5,2,5,3],[3,4,5,7],[12,5,12,7],[7,5,7,7],[10,6,10,7],[11,6,11,7],[7,0,7,2],[2,0,2,7],[212,0,212,7],[203,4,203,7],[209,0,209,7],[210,0,210,7],[211,0,211,7],[186,4,186,7],[195,0,195,3],[195,4,195,7],[196,0,196,3],[196,4,196,7],[189,0,189,1],[193,0,193,1],[205,0,205,7],[206,0,206,7],[208,0,208,7],[202,4,202,7],[200,0,201,0],[204,1,204,2],[204,4,204,6],[202,0,202,2],[203,0,203,2],[187,4,187,6],[198,0,199,0],[192,6,192,7],[185,4,185,7],[186,0,186,3],[146,4,146,7],[130,0,130,2],[139,0,139,2],[139,4,139,7],[149,0,149,7],[142,0,143,0],[144,0,145,0],[156,1,156,2],[156,4,156,6],[160,1,160,2],[160,4,160,6],[183,0,184,0],[183,1,183,2],[183,3,183,7],[184,1,184,2],[181,0,182,0],[161,0,161,3],[161,4,161,7],[162,0,162,3],[162,4,162,7],[166,0,166,3],[166,4,166,7],[190,0,192,1],[194,0,194,1],[150,0,150,7],[154,0,155,1],[158,0,159,1],[154,4,155,5],[158,4,159,5],[178,0,178,7],[167,0,167,3],[167,4,167,7],[170,4,171,5],[170,0,171,1],[168,1,168,2],[168,4,168,6],[174,1,174,2],[185,0,185,3],[164,0,165,1],[189,4,189,7],[193,2,193,7],[187,1,187,2],[184,3,184,7],[175,0,175,7],[176,0,176,7],[179,0,180,0],[30,0,30,7],[22,0,22,7],[13,0,13,7],[8,0,8,7],[174,4,174,6],[172,0,172,3],[172,4,172,7],[173,0,173,3],[173,4,173,7],[120,0,120,3],[120,4,120,7],[140,4,140,6],[140,1,140,2],[138,0,138,2],[148,1,148,2],[148,4,148,6],[146,0,146,2],[147,0,147,2],[147,4,147,7],[96,4,96,7],[108,0,108,3],[123,0,123,7],[130,4,130,7],[132,1,132,2]]}
[null,"FY17 IMPACT / OUTCOMES / LASTING CHANGE INFORMATION - PROJECTS AND INITIATIVES",null,null,null,null,null,null,null,null,"Country","Region","CI member or Affiliate member","Type of Donor","Donors","Start-End dates","Program Type Classification","Type of outcomes ","Geographical scope","Yes/No"]
[null,"Veuillez remplir ce formulaire en répondant à toutes les questions qui sont pertinentes et applicables à ces projets ou initiatives qui, à n'importe quel moment de l'AF17 (1er juillet 2016 - 30 juin 2017), ont des preuves compilées et documentées d'impact/résultats/changement durable pour l'un des 25 indicateurs globaux de la stratégie du Programme 2020 de CARE, ou tout autre indicateur qui porte sur les résultats et l’approche de la stratégie du Programme 2020 de CARE. Pour plus de directives ou de détails, veuillez consulter http://careglobalmel.care2share.wikispaces.net/ \n\nPour simplifier le remplissage, le formulaire a des macros qui rendent les déclarations plus dynamiques et permettent l'affichage ou masquage des questions, en fonction des données que vous fournissez. Veuillez vous assurer que vous \"Activer les macros\" lorsque vous ouvrez le formulaire en format Excel. Si vous n'êtes pas en mesure d'activer les macros dans Excel, ne vous inquiétez pas !  Le formulaire affichera tous ses contacts correctement. Seulement, vous ne serez pas en mesure de voir l'affichage/masquage de questions en fonction de ce qui est pertinent pour votre projet.\n\nLes directives supplémentaires sur comment déclarer les données dans ce formulaire :\n- Les données déclarées doivent être bien appuyés par des références, des évaluations d'impact, le suivi des résultats, des études de recherche ou des rapports de projet solides.\n- Toutes les informations déclarées dans ce formulaire doivent être comparables et montrer les changements qui s'opèrent, c’est-à-dire, fournir avec la base de référence ET les dernières données de mesure. Si votre projet/initiative N'A QUE des données de base cette année et qu'aucune autre mesure n'a encore eu lieu, veuillez ne pas le déclarer pendant cet exercice fiscal. Vous devriez déclarer les données seulement lorsque vous êtes en mesure de relater l'évolution de votre projet/initiative.\n- Pour votre information, il y a une section verte sous chaque indicateur où le formulaire génère des calculs automatiques sur la \"taille du changement\". C'est un calcul pour montrer comment l'impact/résultat/ changement durable des données fournies par votre projet/initiative contribue aux objectifs globaux du secteur de résultats/approche.\n- Pour les données de référence : les chiffres de base doivent être des chiffres ponctuels/uniques obtenus au cours de l'étude de référence. Ils ne peuvent pas inclure les chiffres provenant d'autres mesures au cours des années précédant cet exercice fiscal, faits pendant la mise en œuvre du projet/initiative. Pour les dernières données de mesure : Si vous avez déjà déclaré les résultats/impact/changement durable l'année dernière, vous devez seulement inclure toute NOUVELLE information qui n'était pas déjà déclarée pendant l'AF16, ou toutes les données que vous souhaiteriez modifier à partir de l'exercice fiscal 2016. D'autre part, si n’avez que les dernières figures solides de mesure, fournissez les - et essayez de fournir une estimation d’étude de référence, en fonction des statistiques nationales ou d'autres sources valides. \n\nVeuillez vous assurer que toutes les informations fournies ont été discutées et validées par tous les membres clés du personnel engagés dans la mise en œuvre, avant de les soumettre au PIIRS. S’il y a des sections dans lesquelles vous n'avez rien à déclarer, veuillez les laisser vide (pas besoin de mettre zéro). Si vous avez des questions sur comment déclarer les données d’impact dans ce formulaire, veuillez contacter piirs@careinternational.org ",null,null,null,null,null,null,null,null,"(Sélectionnez dans la liste)","(Sélectionnez dans la liste)","(Sélectionnez dans la liste)","(Sélectionnez dans la liste)","(Sélectionnez dans la liste)","2016-06-30","(Sélectionnez dans la liste)","(Sélectionnez dans la liste)","(Sélectionnez dans la liste)","(Sélectionnez dans la liste)"]
["Section 1:  Informations Générales sur le Projet ou l’Initiative",null,null,null,null,null,null,null,null,null,"Afghanistan","Afrique - Est et Central","CARE Australia","Government","Bill & Melinda Gates Foundation","2017-07-01","Humanitarian Sexual, Reproductive and Maternal Health (SRMH)","Development","Sub-National","YES"]
["Pays (par ordre alphabétique en Anglais)",null,"(Sélectionnez dans la liste)",null,null,null,null,null,null,null,"Albania","Afrique - Sud","CARE Canada","Foundation","ECHO - European Commission for Humanitarian Aid and Civil Protection",null,"Humanitarian A Life Free From Violence (GBV)","Humanitarian","National","NO"]
["Région",null,"(Sélectionnez dans la liste)",null,null,null,null,null,null,null,"Algeria","Afrique - Ouest","CARE Danmark","Corporation","EU - European Union (other than ECHO)",null,"Humanitarian Food & Nutrition Security and Resilience to Climate Change","Both development and humanitarian outcomes/impacts","Multiple countries"]
["Code du Project/Initiative dans le systeme PIIRS\n(Le cas échéant)",null,null,null,null,null,null,null,null,null,"Andorra","Asie et le Pacifique","CARE Deutschland-Luxemburg","Individual supporter","Government - Australia",null,"Humanitarian Access to and Control over Economic Resources",null,"Regional"]
["Nom du projet/Initiative",null,null,null,null,null,null,null,null,null,"Angola","Amérique Latin et le Caribe","CARE Egypt","Multilateral agency","Government - Austria",null,"Humanitarian Other",null,"Global"]
["Le document sur l’étude de référence/évaluation comprenant les données qualitatives et quantitatives déclarées a-t-il été téléchargé dans la bibliothèque numérique d’évaluations ou autres structures ?\n\nSi vous voulez en savoir plus sur la bibliothèque numérique des évaluations de CI, veuillez consulter le site http://www.careevaluations.org/",null,null,"(Sélectionnez dans la liste)","Veuillez fournir le(s) lien(s)",null,null,null,null,null,"Antigua and Barbuda","Moyen Orient, Afrique du Nord et Europe","CARE France","Other","Government - Belgium",null,"Development Sexual, Reproductive and Maternal Health (SRMH)",null,"Other"]
["Section 2 : Informations sur l’Exercice Fiscal – Contribution Quantitative à l’Approche et aux Résultats Globaux de CARE ",null,null,null,null,null,null,null,null,null,"Argentina","Amérique du Nord","CARE India",null,"Government - Canada",null,"Development A Life Free From Violence (GBV)"]
["Veuillez sélectionner YES(OUI) pour les Domaines de Résultats ou les Éléments de l’Approche pour lesquels le projet/initiative a collecté et documenté des preuves d’impact/résultats/changement pendant cet exercice fiscal.\nNote Importante : Le formulaire masquera automatiquement toutes les questions relatives à ces domaines auxquelles vous avez répondu NO(NON). Veuillez vous assurer que vous avez sélectionné toutes les options appropriées.",null,null,null,null,null,null,null,null,null,"Armenia",null,"CARE Indonesia",null,"Government - Denmark",null,"Development Food & Nutrition Security and Resilience to Climate Change"]
["La Pauvreté et l’Injustice Sociale","L’Humanitaire","Les Droits et La Santé Sexuelle, Reproductive et Maternelle","Le Droit à une Vie Sans Violence","La Sécurité Alimentaire et Nutritionnelle et la Résilience au Changement Climatique ","L'Autonomisation Économique des Femmes","L’Approche de CARE\nRenforcer l’Égalité des Sexes et la Voix des Femmes\nPromouvoir la Gouvernance Inclusive\nAméliorer la Résilience ",null,null,null,"Aruba",null,"CARE Japan",null,"Government - Finland",null,"Development Access to and Control over Economic Resources"]
["(Sélectionnez dans la liste)","(Sélectionnez dans la liste)","(Sélectionnez dans la liste)","(Sélectionnez dans la liste)","(Sélectionnez dans la liste)","(Sélectionnez dans la liste)","(Sélectionnez dans la liste)",null,null,null,"Australia",null,"CARE Morocco",null,"Government - France",null,"Development Other"]
["Veuillez fournir la taille moyenne des ménages pour la population d'impact dans la région où le projet/initiative a mesuré l'impact/les résultats/le changement durable présentés ci-dessous. La taille moyenne des ménages est essentielle pour l'analyse des données et de l'extrapolation (lorsqu’elle est pertinente).",null,null,null,null,null,null,null,null,null,"Austria",null,"CARE Nederland",null,"Government - Germany"]
["Résultat: La Pauvreté et l’Injustice Sociale",null,null,null,null,null,null,null,null,null,"Azerbaijan",null,"CARE Norge",null,"Government - India"]
["Indicateur 1. % de la population vivant en dessous du seuil international de la pauvreté (Indicateur de l'ODD  1.1.1 )",null,null,null,null,null,null,null,null,null,"Bahamas",null,"CARE Österreich",null,"Government - Ireland"]
["Référence","% de la population vivant en dessous du seuil international de la pauvreté au sein de la population sur laquelle CARE envisage d'avoir un impact ",null,"% des femmes et des filles  vivant en dessous du seuil international de la pauvreté au sein de la population sur laquelle CARE envisage d'avoir un impact ",null,"% des hommes et des garçons  vivant en dessous du seuil international de la pauvreté au sein de la population sur laquelle CARE envisage d'avoir un impact ",null,{"$f":"IF(AND(E16=\"\",G16=\"\"),\"\",IF(C16>G16,IF(C16>E16,\"Attention: le % total ne peut pas être supérieur au % des femmes et filles et/ou au % de hommes et garçons\",\"\"),\"\"))","v":""},null,null,"Bahrain",null,"CARE Peru",null,"Government - Japan"]
[null,"# total des personnes au sein de la population sur laquelle CARE envisage d'avoir un impact",null,"# des femmes et des filles au sein de la population sur laquelle CARE envisage d'avoir un impact",null,"# des hommes et des garçons au sein de la population sur laquelle CARE envisage d'avoir un impact",null,{"$f":"IF(AND(E17=\"\",G17=\"\"),\"\",IF(C17>G17,IF(C17>E17,\"\",\"Attention: le # total dois être supérieur au # des femmes et filles et/ou au # de hommes et garçons\"),\"Attention: le # total dois être supérieur au # des femmes et filles et/ou au # de hommes et garçons\"))","v":""},null,null,"Bangladesh",null,"CARE UK",null,"Government - Luxemburg"]
["Dernière mesure pendant l’exercice fiscal",{"$f":"B16","v":"% de la population vivant en dessous du seuil international de la pauvreté au sein de la population sur laquelle CARE envisage d'avoir un impact "},null,{"$f":"D16","v":"% des femmes et des filles  vivant en dessous du seuil international de la pauvreté au sein de la population sur laquelle CARE envisage d'avoir un impact "},null,{"$f":"F16","v":"% des hommes et des garçons  vivant en dessous du seuil international de la pauvreté au sein de la population sur laquelle CARE envisage d'avoir un impact "},null,{"$f":"IF(AND(E18=\"\",G18=\"\"),\"\",IF(C18>G18,IF(C18>E18,\"Attention: le % total ne peut pas être supérieur au % des femmes et filles et/ou au % de hommes et garçons\",\"\"),\"\"))","v":""},null,null,"Belarus",null,"CARE USA",null,"Government - Netherlands"]
[null,{"$f":"B17","v":"# total des personnes au sein de la population sur laquelle CARE envisage d'avoir un impact"},null,{"$f":"D17","v":"# des femmes et des filles au sein de la population sur laquelle CARE envisage d'avoir un impact"},null,{"$f":"F17","v":"# des hommes et des garçons au sein de la population sur laquelle CARE envisage d'avoir un impact"},null,{"$f":"IF(AND(E19=\"\",G19=\"\"),\"\",IF(C19>G19,IF(C19>E19,\"\",\"Attention: le # total dois être supérieur au # des femmes et filles et/ou au # de hommes et garçons\"),\"Attention: le # total dois être supérieur au # des femmes et filles et/ou au # de hommes et garçons\"))","v":""},null,null,"Belgium",null,"Chrysalis (Sri Lanka)",null,"Government - Norway"]
["Veuillez décrire l’indicateur exacte que vous avez utilisé dans votre projet ou initiative, déclaré dans les lignes ci-dessus",null,null,"Le nombre déclaré ci-dessus de la population d’impact inclut-il les membres de la famille ? ","Veuillez nous faire part de tout autre commentaire que vous pourriez avoir concernant la déclaration de la contribution du projet à cet indicateur. Exemples : Des détails supplémentaires sur les données ci-dessus (p. ex. dates de la mesure), les données des mesures antérieures, des données avec un niveau de désagrégation différent (p. ex., âge, classe, race, etc.), les données qualitatives qui soutiennent ces données, etc.",null,null,null,null,null,"Belize",null,"Raks Thai Foundation",null,"Government - Peru"]
[null,null,null,"(Sélectionnez dans la liste)",null,null,null,null,null,null,"Benin",null,"CI Secretariat",null,"Government - Sweden"]
["La contribution aux cibles de la Stratégie du Programme 2020 de CARE :","Le nouvel impact total lié à cet indicateur \n(# de personnes supplémentaires qui ne vivent plus en dessous du seuil international de la pauvreté)",null,{"$f":"IFERROR(C16*C19-C18*C19,\"\")","v":0},"Le nouvel impact total orienté vers les cibles de Domaine de Résultat (y compris les membres de la famille)",null,null,{"$f":"IFERROR(IF(D21=\"NO\",D22*$E$13,D22),D22)","v":0},null,null,"Bhutan",null,"Other",null,"Government - Switzerland"]
["Indicator 2. % of the population living below the national poverty line (SDG indicator 1.2.1)",null,null,null,null,null,null,null,null,null,"Bolivia",null,null,null,"Government - Thailand"]
["Référence","% de la population vivant en dessous du seuil national de la pauvreté au sein de la population sur laquelle CARE envisage d'avoir un impact ",null,"% des femmes et des filles  vivant en dessous du seuil national de la pauvreté au sein de la population sur laquelle CARE envisage d'avoir un impact",null,"% des hommes et des garçons  vivant en dessous du seuil national de la pauvreté au sein de la population sur laquelle CARE envisage d'avoir un impact ",null,{"$f":"IF(AND(E24=\"\",G24=\"\"),\"\",IF(C24>G24,IF(C24>E24,\"Attention: le % total ne peut pas être supérieur au % des femmes et filles et/ou au % de hommes et garçons\",\"\"),\"\"))","v":""},null,null,"Bosnia and Herzegovina",null,null,null,"Government - UK"]
[null,"# total des personnes au sein de la population sur laquelle CARE envisage d'avoir un impact",null,"# des femmes et des filles au sein de la population sur laquelle CARE envisage d'avoir un impact",null,"# des hommes et des garçons au sein de la population sur laquelle CARE envisage d'avoir un impact",null,{"$f":"IF(AND(E25=\"\",G25=\"\"),\"\",IF(C25>G25,IF(C25>E25,\"\",\"Attention: le # total dois être supérieur au # des femmes et filles et/ou au # de hommes et garçons\"),\"Attention: le # total dois être supérieur au # des femmes et filles et/ou au # de hommes et garçons\"))","v":""},null,null,"Botswana",null,null,null,"Government - US"]
["Dernière mesure pendant l’exercice fiscal",{"$f":"B24","v":"% de la population vivant en dessous du seuil national de la pauvreté au sein de la population sur laquelle CARE envisage d'avoir un impact "},null,{"$f":"D24","v":"% des femmes et des filles  vivant en dessous du seuil national de la pauvreté au sein de la population sur laquelle CARE envisage d'avoir un impact"},null,{"$f":"F24","v":"% des hommes et des garçons  vivant en dessous du seuil national de la pauvreté au sein de la population sur laquelle CARE envisage d'avoir un impact "},null,{"$f":"IF(AND(E26=\"\",G26=\"\"),\"\",IF(C26>G26,IF(C26>E26,\"Attention: le % total ne peut pas être supérieur au % des femmes et filles et/ou au % de hommes et garçons\",\"\"),\"\"))","v":""},null,null,"Brazil",null,"Other",null,"The Global Fund to Fight AIDS, Tuberculosis and Malaria"]
[null,{"$f":"B25","v":"# total des personnes au sein de la population sur laquelle CARE envisage d'avoir un impact"},null,{"$f":"D25","v":"# des femmes et des filles au sein de la population sur laquelle CARE envisage d'avoir un impact"},null,{"$f":"F25","v":"# des hommes et des garçons au sein de la population sur laquelle CARE envisage d'avoir un impact"},null,{"$f":"IF(AND(E27=\"\",G27=\"\"),\"\",IF(C27>G27,IF(C27>E27,\"\",\"Attention: le # total dois être supérieur au # des femmes et filles et/ou au # de hommes et garçons\"),\"Attention: le # total dois être supérieur au # des femmes et filles et/ou au # de hommes et garçons\"))","v":""},null,null,"Brunei",null,null,null,"The World Bank"]
["Veuillez décrire l’indicateur exacte que vous avez utilisé dans votre projet ou initiative, déclaré dans les lignes ci-dessus",null,null,"Le nombre déclaré ci-dessus de la population d’impact inclut-il les membres de la famille ? ","Veuillez nous faire part de tout autre commentaire que vous pourriez avoir concernant la déclaration de la contribution du projet à cet indicateur. Exemples : Des détails supplémentaires sur les données ci-dessus (p. ex. dates de la mesure), les données des mesures antérieures, des données avec un niveau de désagrégation différent (p. ex., âge, classe, race, etc.), les données qualitatives qui soutiennent ces données, etc.",null,null,null,null,null,"Bulgaria",null,null,null,"UN - United Nations agencies/offices"]
[null,null,null,"(Sélectionnez dans la liste)",null,null,null,null,null,null,"Burkina Faso",null,null,null,"Other"]
["La contribution aux cibles de la Stratégie du Programme 2020 de CARE :","Le nouvel impact total lié à cet indicateur \n(# de personnes supplémentaires qui ne vivent plus en dessous du seuil national de la pauvreté)",null,{"$f":"IFERROR(C24*C27-C26*C27,\"\")","v":0},"Le nouvel impact total orienté vers les cibles de Domaine de Résultat (y compris les membres de la famille)",null,null,{"$f":"IFERROR(IF(D29=\"NO\",D30*$E$13,D30),D30)","v":0},null,null,"Burma"]
["Indicateur 3. % de la population dans des ménages ayant accès aux services de base (Indicateur de l'ODD 1.4.1)",null,null,null,null,null,null,null,null,null,"Burundi"]
["Référence","% de la population vivant dans des ménages ayant accès aux services de base au sein de la population sur laquelle CARE envisage d'avoir un impact",null,"% des femmes et des filles vivant dans des ménages ayant accès aux services de base au sein de la population sur laquelle CARE envisage d'avoir un impact",null,"% des hommes et des garçons vivant dans des ménages ayant accès aux services de base au sein de la population sur laquelle CARE envisage d'avoir un impact",null,{"$f":"IF(AND(E32=\"\",G32=\"\"),\"\",IF(C32>G32,IF(C32>E32,\"Attention: le % total ne peut pas être supérieur au % des femmes et filles et/ou au % de hommes et garçons\",\"\"),\"\"))","v":""},null,null,"Cambodia"]
[null,"# total des personnes au sein de la population sur laquelle CARE envisage d'avoir un impact",null,"# des femmes et des filles au sein de la population sur laquelle CARE envisage d'avoir un impact",null,"# des hommes et des garçons au sein de la population sur laquelle CARE envisage d'avoir un impact",null,{"$f":"IF(AND(E33=\"\",G33=\"\"),\"\",IF(C33>G33,IF(C33>E33,\"\",\"Attention: le # total dois être supérieur au # des femmes et filles et/ou au # de hommes et garçons\"),\"Attention: le # total dois être supérieur au # des femmes et filles et/ou au # de hommes et garçons\"))","v":""},null,null,"Cameroon"]
["Dernière mesure pendant l’exercice fiscal",{"$f":"B32","v":"% de la population vivant dans des ménages ayant accès aux services de base au sein de la population sur laquelle CARE envisage d'avoir un impact"},null,{"$f":"D32","v":"% des femmes et des filles vivant dans des ménages ayant accès aux services de base au sein de la population sur laquelle CARE envisage d'avoir un impact"},null,{"$f":"F32","v":"% des hommes et des garçons vivant dans des ménages ayant accès aux services de base au sein de la population sur laquelle CARE envisage d'avoir un impact"},null,{"$f":"IF(AND(E34=\"\",G34=\"\"),\"\",IF(C34>G34,IF(C34>E34,\"Attention: le % total ne peut pas être supérieur au % des femmes et filles et/ou au % de hommes et garçons\",\"\"),\"\"))","v":""},null,null,"Canada"]
[null,{"$f":"B33","v":"# total des personnes au sein de la population sur laquelle CARE envisage d'avoir un impact"},null,{"$f":"D33","v":"# des femmes et des filles au sein de la population sur laquelle CARE envisage d'avoir un impact"},null,{"$f":"F33","v":"# des hommes et des garçons au sein de la population sur laquelle CARE envisage d'avoir un impact"},null,{"$f":"IF(AND(E35=\"\",G35=\"\"),\"\",IF(C35>G35,IF(C35>E35,\"\",\"Attention: le # total dois être supérieur au # des femmes et filles et/ou au # de hommes et garçons\"),\"Attention: le # total dois être supérieur au # des femmes et filles et/ou au # de hommes et garçons\"))","v":""},null,null,"Cape Verde"]
["Veuillez décrire l’indicateur exacte que vous avez utilisé dans votre projet ou initiative, déclaré dans les lignes ci-dessus",null,null,"Le nombre déclaré ci-dessus de la population d’impact inclut-il les membres de la famille ? ","Veuillez nous faire part de tout autre commentaire que vous pourriez avoir concernant la déclaration de la contribution du projet à cet indicateur. Exemples : Des détails supplémentaires sur les données ci-dessus (p. ex. dates de la mesure), des données des mesures antérieures, des données avec un niveau de désagrégation différent (p. ex., âge, classe, race, etc.), des données qualitatives qui soutiennent ces données, etc.",null,null,null,null,null,"Central African Republic"]
[null,null,null,"(Sélectionnez dans la liste)",null,null,null,null,null,null,"Chad"]
["La contribution aux cibles de la Stratégie du Programme 2020 de CARE :","Le nouvel impact total lié à cet indicateur \n(# de personnes supplémentaires vivant dans des ménages ayant accès aux services de base)",null,{"$f":"IFERROR(C34*C35-C32*C35,\"\")","v":0},"Le nouvel impact total orienté vers les cibles de Domaine de Résultat (y compris les membres de la famille)\n",null,null,{"$f":"IFERROR(IF(D37=\"NO\",D38*$E$13,D38),D38)","v":0},null,null,"Chile"]
["Autres indicateurs relatifs à la Pauvreté et l’Injustice Sociale : Veuillez déclarer les données ou tout autres indicateurs relatifs qui montrent les contributions de CARE et ses partenaires à la lutte contre  la pauvreté et les injustices sociales  ",null,null,null,null,null,null,null,null,null,"China"]
[null,null,null,null,null,null,null,null,null,null,"Colombia"]
["Résultat: L'Assistance Humanitaire",null,null,null,null,null,null,null,null,null,"Comoros"]
["Indicateur 4. % des personnes touchées par la catastrophe/crise soutenues à travers/par CARE qui :",null,null,null,null,null,null,null,null,null,"Congo, Democratic Republic of"]
["Ont reçu une assistance humanitaire qui est pleinement conforme aux normes internationales de CARE et et aux autres normes internationales","# total des personnes qui ont reçu une assistance humanitaire qui est pleinement conforme aux normes internationales de CARE et autres",null,"# total des femmes et des filles qui ont reçu une assistance humanitaire qui est pleinement conforme aux normes internationales de CARE et autres",null,"# total des hommes et des garçons qui ont reçu une assistance humanitaire qui est pleinement conforme aux normes internationales de CARE et autres",null,{"$f":"IF(AND(E43=\"\",G43=\"\"),\"\",IF(C43<(G43+E43),IF(C43<(G43+E43),\"Attention: le # total ne peut pas être inférieur à la somme du # des femmes et filles et/ou du # de hommes et garçons\",\"\"),\"\"))","v":""},null,null,"Congo, Republic of the"]
[null,"# total des personnes touchées par la catastrophe/crise ayant besoin d’assistance humanitaire (Chiffres totaux, pas seulement les populations ciblées par CARE) ",null,"# total des femmes et des filles touchées par la catastrophe/crise ayant besoin d’assistance humanitaire (Chiffres totaux, pas seulement les populations ciblées par CARE) ",null,"# total des hommes et des garçons touchés par la catastrophe/crise ayant besoin d’assistance humanitaire (Chiffres totaux, pas seulement les populations ciblées par CARE) ",null,{"$f":"IF(C44<C43,\"Nombre total de personnes dans le besoin ne peut pas être inférieur au nombre total de participants assistés par CARE\",\"\")","v":""},null,null,"Costa Rica"]
[null,null,null,null,null,null,null,null,null,null,"Cote d'Ivoire"]
["Ont reçu un abri d’urgence adéquat ","# total des personnes soutenues à travers/par CARE, avec un abri d’urgence",null,"# total des femmes et des filles soutenues à travers/par CARE, avec un abri d’urgence ",null,"# total des hommes et des garçons soutenus à travers/par CARE, avec un abri d’urgence",null,{"$f":"IF(AND(E46=\"\",G46=\"\"),\"\",IF(C46<(G46+E46),IF(C46<(G46+E46),\"Attention: le # total ne peut pas être inférieur à la somme du # des femmes et filles et/ou du # de hommes et garçons\",\"\"),\"\"))","v":""},null,null,"Croatia"]
[null,"# total des personnes touchées par la catastrophe/crise au sein de la population d’impact, ayant besoin d’un abri d’urgence",null,"# total des femmes et des filles touchées par la catastrophe/crise au sein de la population d’impact, ayant besoin d’un abri d’urgence",null,"# total des hommes et des garçons touchés par la catastrophe/crise au sein de la population d’impact, ayant besoin d’un abri d’urgence",null,{"$f":"IF(C47<C46,\"Nombre total de personnes dans le besoin ne peut pas être inférieur au nombre total de participants assistés par CARE\",\"\")","v":""},null,null,"Cuba"]
["Ont reçu ou recouvert un logement adéquat/amélioré ","# total des personnes soutenues à travers/par CARE, avec un logement adéquat/amélioré",null,"# total des femmes et des filles soutenues à travers/par CARE, avec un logement adéquat/amélioré",null,"# total des hommes et des garçons soutenus à travers/par CARE, avec un logement adéquat/amélioré",null,{"$f":"IF(AND(E48=\"\",G48=\"\"),\"\",IF(C48<(G48+E48),IF(C48<(G48+E48),\"Attention: le # total ne peut pas être inférieur à la somme du # des femmes et filles et/ou du # de hommes et garçons\",\"\"),\"\"))","v":""},null,null,"Curacao"]
[null,"# total des personnes touchées par la catastrophe/crise au sein de la population d’impact, ayant besoin d’un logement adéquat/amélioré",null,"# total des femmes et des filles touchées par la catastrophe/crise au sein de la population d’impact, ayant besoin d’un logement adéquat/amélioré",null,"# total hommes et garçons touchés par la catastrophe/crise au sein de la population d’impact, ayant besoin d’un logement adéquat/amélioré",null,{"$f":"IF(C49<C48,\"Nombre total de personnes dans le besoin ne peut pas être inférieur au nombre total de participants assistés par CARE\",\"\")","v":""},null,null,"Cyprus"]
["Ont eu accès à l’eau potable","# total des personnes soutenues à travers/par CARE, avec l’accès à l’eau potable",null,"# total des femmes et des filles soutenues à travers/par CARE, avec l’accès à l’eau potable",null,"# total des hommes et des garçons soutenus à travers/par CARE, avec l’accès à l’eau potable",null,{"$f":"IF(AND(E50=\"\",G50=\"\"),\"\",IF(C50<(G50+E50),IF(C50<(G50+E50),\"Attention: le # total ne peut pas être inférieur à la somme du # des femmes et filles et/ou du # de hommes et garçons\",\"\"),\"\"))","v":""},null,null,"Czech Republic"]
[null,"# total des personnes touchées par la catastrophe/crise au sein de la population d’impact, ayant besoin d’accès à l’eau potable",null,"# total des femmes et des filles touchées par la catastrophe/crise au sein de la population d’impact, ayant besoin d’accès à l’eau potable",null,"# total hommes et garçons touchés par la catastrophe/crise au sein de la population d’impact, ayant besoin d’accès à l’eau potable",null,{"$f":"IF(C51<C50,\"Nombre total de personnes dans le besoin ne peut pas être inférieur au nombre total de participants assistés par CARE\",\"\")","v":""},null,null,"Denmark"]
["Ont eu accès aux installations sanitaires adéquates","# total des personnes soutenues à travers/par CARE, avec l’accès aux installations sanitaires adéquates",null,"# total des femmes et des filles soutenues à travers/par CARE, avec l’accès aux installations sanitaires adéquates",null,"# total des hommes et des garçons soutenus à travers/par CARE, avec l’accès aux installations sanitaires adéquates",null,{"$f":"IF(AND(E52=\"\",G52=\"\"),\"\",IF(C52<(G52+E52),IF(C52<(G52+E52),\"Attention: le # total ne peut pas être inférieur à la somme du # des femmes et filles et/ou du # de hommes et garçons\",\"\"),\"\"))","v":""},null,null,"Djibouti"]
[null,"# total des personnes touchées par la catastrophe/crise au sein de la population d’impact, ayant besoin des installations sanitaires adéquates",null,"# total des femmes et des filles touchées par la catastrophe/crise au sein de la population d’impact, ayant besoin des installations sanitaires adéquates",null,"# total hommes et garçons touchés par la catastrophe/crise au sein de la population d’impact, ayant besoin des installations sanitaires adéquates",null,{"$f":"IF(C53<C52,\"Nombre total de personnes dans le besoin ne peut pas être inférieur au nombre total de participants assistés par CARE\",\"\")","v":""},null,null,"Dominica"]
["Ont appliqué des pratiques d’hygiène adéquates","# total des personnes soutenues à travers/par CARE, ayant appliqué des pratiques d’hygiène adéquates",null,"# total des femmes et des filles soutenues à travers/par CARE, ayant appliqué des pratiques d’hygiène adéquates",null,"# total des hommes et des garçons soutenus à travers/par CARE, ayant appliqué des pratiques d’hygiène adéquates",null,{"$f":"IF(AND(E54=\"\",G54=\"\"),\"\",IF(C54<(G54+E54),IF(C54<(G54+E54),\"Attention: le # total ne peut pas être inférieur à la somme du # des femmes et filles et/ou du # de hommes et garçons\",\"\"),\"\"))","v":""},null,null,"Dominican Republic"]
[null,"# total des personnes touchées par la catastrophe/crise au sein de la population d’impact, ayant besoin de soutien en eau, assainissement et hygiène",null,"# total des femmes et des filles touchées par la catastrophe/crise au sein de la population d’impact, ayant besoin de soutien en eau, assainissement et hygiène",null,"# total hommes et garçons touchés par la catastrophe/crise au sein de la population d’impact, ayant besoin de soutien en eau, assainissement et hygiène",null,{"$f":"IF(C55<C54,\"Nombre total de personnes dans le besoin ne peut pas être inférieur au nombre total de participants assistés par CARE\",\"\")","v":""},null,null,"Ecuador"]
["Ont reçu des aliments en quantité et de qualité adéquate ","# total des personnes soutenues à travers/par CARE, avec des aliments en quantité et de qualité adéquate",null,"# total des femmes et des filles soutenues à travers/par CARE, avec des aliments en quantité et de qualité adéquate",null,"# total des hommes et des garçons soutenus à travers/par CARE, avec des aliments en quantité et de qualité adéquate",null,{"$f":"IF(AND(E56=\"\",G56=\"\"),\"\",IF(C56<(G56+E56),IF(C56<(G56+E56),\"Attention: le # total ne peut pas être inférieur à la somme du # des femmes et filles et/ou du # de hommes et garçons\",\"\"),\"\"))","v":""},null,null,"Egypt"]
[null,"# total des personnes touchées par la catastrophe/crise au sein de la population d’impact, ayant besoin d’aliments",null,"# total des femmes et des filles touchées par la catastrophe/crise au sein de la population d’impact, ayant besoin d’aliments",null,"# total hommes et garçons touchés par la catastrophe/crise au sein de la population d’impact, ayant besoin d’aliments",null,{"$f":"IF(C57<C56,\"Nombre total de personnes dans le besoin ne peut pas être inférieur au nombre total de participants assistés par CARE\",\"\")","v":""},null,null,"El Salvador"]
["Ont adopté des pratiques nutritionnelles adéquates","# total des personnes soutenues à travers/par CARE, ayant appliqué des pratiques nutritionnelles adéquates",null,"# total des femmes et des filles soutenues à travers/par CARE, ayant appliqué des pratiques nutritionnelles adéquates ",null,"# total des hommes et des garçons soutenus à travers/par CARE, ayant appliqué des pratiques nutritionnelles adéquates ",null,{"$f":"IF(AND(E58=\"\",G58=\"\"),\"\",IF(C58<(G58+E58),IF(C58<(G58+E58),\"Attention: le # total ne peut pas être inférieur à la somme du # des femmes et filles et/ou du # de hommes et garçons\",\"\"),\"\"))","v":""},null,null,"Equatorial Guinea"]
[null,"# total des personnes touchées par la catastrophe/crise au sein de la population d’impact, ayant besoin de soutien alimentaire et nutritionnel",null,"# total des femmes et des filles touchées par la catastrophe/crise au sein de la population d’impact, ayant besoin de soutien alimentaire et nutritionnel",null,"# total hommes et garçons touchés par la catastrophe/crise au sein de la population d’impact, ayant besoin de soutien alimentaire et nutritionnel",null,{"$f":"IF(C59<C58,\"Nombre total de personnes dans le besoin ne peut pas être inférieur au nombre total de participants assistés par CARE\",\"\")","v":""},null,null,"Eritrea"]
["Ont eu accès à au moins un service de santé sexuelle et reproductive (particulièrement les femmes en âge de procréer et les adolescentes)","# total des personnes soutenues à travers/par CARE, avec un accès à au moins un service de santé sexuelle et reproductive ",null,"# total des femmes et des filles soutenues à travers/par CARE, un accès à au moins un service de santé sexuelle et reproductive ",null,"# total des hommes et des garçons soutenus à travers/par CARE, un accès à au moins un service de santé sexuelle et reproductive ",null,{"$f":"IF(AND(E60=\"\",G60=\"\"),\"\",IF(C60<(G60+E60),IF(C60<(G60+E60),\"Attention: le # total ne peut pas être inférieur à la somme du # des femmes et filles et/ou du # de hommes et garçons\",\"\"),\"\"))","v":""},null,null,"Estonia"]
[null,"# total des personnes touchées par la catastrophe/crise au sein de la population d’impact, ayant besoin des services de santé sexuelle et reproductive",null,"# total des femmes et des filles touchées par la catastrophe/crise au sein de la population d’impact, ayant besoin des services de santé sexuelle et reproductive",null,"# total hommes et garçons touchés par la catastrophe/crise au sein de la population d’impact, ayant besoin des services de santé sexuelle et reproductive",null,{"$f":"IF(C61<C60,\"Nombre total de personnes dans le besoin ne peut pas être inférieur au nombre total de participants assistés par CARE\",\"\")","v":""},null,null,"Ethiopia"]
["Ont recouvré les biens des ménages, actifs, et/ou opportunités économiques ","# total des personnes soutenues à travers/par CARE, avec des ménages recouvrés ou des opportunités économiques",null,"# total des femmes et des filles soutenues à travers/par CARE, avec des ménages recouvrés ou des opportunités économiques",null,"# total des hommes et des garçons soutenus à travers/par CARE, avec des ménages recouvrés ou des opportunités économiques",null,{"$f":"IF(AND(E62=\"\",G62=\"\"),\"\",IF(C62<(G62+E62),IF(C62<(G62+E62),\"Attention: le # total ne peut pas être inférieur à la somme du # des femmes et filles et/ou du # de hommes et garçons\",\"\"),\"\"))","v":""},null,null,"Fiji"]
[null,"# total des personnes touchées par la catastrophe/crise au sein de la population d’impact, ayant besoin d’un recouvrement des ménages ou des revenus ",null,"# total des femmes et des filles touchées par la catastrophe/crise au sein de la population d’impact, ayant besoin d’un recouvrement des ménages ou des revenus ",null,"# total des hommes et des garçons touchés par la catastrophe/crise au sein de la population d’impact, ayant besoin d’un recouvrement des ménages ou des revenus",null,{"$f":"IF(C63<C62,\"Nombre total de personnes dans le besoin ne peut pas être inférieur au nombre total de participants assistés par CARE\",\"\")","v":""},null,null,"Finland"]
["Veuillez décrire l’indicateur exacte que vous avez utilisé dans votre projet ou initiative",null,null,"Les nombres totaux appuyés par CARE déclarés ci-dessus incluent-ils les membres de la famille ?","Veuillez nous faire part de tout autre commentaire que vous pourriez avoir concernant la déclaration de la contribution du projet à cet indicateur. Exemples : Des détails supplémentaires sur les données ci-dessus (p. ex. dates de la mesure), des données des mesures antérieures, des données avec un niveau de désagrégation différent (p. ex., âge, classe, race, etc.), des données qualitatives qui soutiennent ces données, etc. ",null,null,null,null,null,"France"]
[null,null,null,"(Sélectionnez dans la liste)",null,null,null,null,null,null,"Gabon"]
["La contribution aux cibles de la Stratégie du Programme 2020 de CARE :","Total des nouveaux impacts liés à cet indicateur \n(# des personnes qui ont reçu une assistance humanitaire qui est pleinement conforme aux normes internationales de CARE et aux autres normes internationales)",null,{"$f":"IFERROR(C43,\"\")","v":0},"Total des nouveaux résultats/impacts orienté vers les cibles de Domaine de Résultat (y compris les membres de la famille)  \n",null,null,{"$f":"IFERROR(IF(D65=\"NO\",D66*$E$13,D66),D66)","v":0},null,null,"Gambia, The"]
["Indicateur 5. % des personnes touchées par la catastrophe/crise dans la zone d’opération de CARE qui sont satisfaits de la pertinence, la rapidité, et la redevabilité des interventions humanitaires",null,null,null,null,null,null,null,null,null,"Georgia"]
["La satisfaction à l'égard de l’intervention humanitaire de CARE","% total des personnes soutenues à travers/par CARE, satisfaits à l'égard de l’intervention humanitaire de CARE ",null,"% total des femmes et des filles soutenues à travers/par CARE, satisfaits à l'égard de l’intervention humanitaire de CARE ",null,"% total des hommes et des garçons soutenus à travers/par CARE, satisfaits à l'égard de l’intervention humanitaire de CARE",null,{"$f":"IF(AND(E68=\"\",G68=\"\"),\"\",IF(C68>G68,IF(C68>E68,\"Attention: le % total ne peut pas être supérieur au % des femmes et filles et/ou au % de hommes et garçons\",\"\"),\"\"))","v":""},null,null,"Germany"]
[null,"# total des personnes soutenues à travers/par CARE, satisfaits à l'égard de l’intervention humanitaire de CARE",null,"# total des femmes et des filles soutenues à travers/par CARE, satisfaits à l'égard de l’intervention humanitaire de CARE",null,"# total des hommes et des garçons soutenus à travers/par CARE, satisfaits à l'égard de l’intervention humanitaire de CARE",null,{"$f":"IF(AND(E69=\"\",G69=\"\"),\"\",IF(C69<(G69+E69),IF(C69<(G69+E69),\"Attention: le # total ne peut pas être inférieur à la somme du # des femmes et filles et/ou du # de hommes et garçons\",\"\"),\"\"))","v":""},null,null,"Ghana"]
["Veuillez décrire l’indicateur exacte que vous avez utilisé pour déclarer les chiffres ci-dessus ",null,null,"Les nombres totaux appuyés par CARE déclarés ci-dessus incluent-ils les membres de la famille ?","Veuillez nous faire part de tout autre commentaire que vous pourriez avoir concernant la déclaration de la contribution du projet à cet indicateur. Exemples : Des détails supplémentaires sur les données ci-dessus (p. ex. dates de la mesure), des données des mesures antérieures, des données avec un niveau de désagrégation différent (p. ex., âge, classe, race, etc.), des données qualitatives qui soutiennent ces données, etc.",null,null,null,null,null,"Greece"]
[null,null,null,"(Sélectionnez dans la liste)",null,null,null,null,null,null,"Grenada"]
["La contribution aux cibles de la Stratégie du Programme 2020 de CARE :","Total des nouveaux impacts liés à cet indicateur \n(# des personnes qui sont satisfaites de la pertinence, la rapidité, et la redevabilité des interventions humanitaires)",null,{"$f":"IFERROR(C68*C69,\"\")","v":0},"Total des nouveaux résultats/impacts orienté vers les cibles de Domaine de Résultat (y compris les membres de la famille)  ",null,null,{"$f":"IFERROR(IF(D71=\"NO\",D72*$E$13,D72),D72)","v":0},null,null,"Guatemala"]
["Autres indicateurs relatifs à l’Humanitaire : Veuillez déclarer les données ou tout autres indicateurs relatifs qui montrent les contributions de CARE et ses partenaires à ce Domaine de Résultat.",null,null,null,null,null,null,null,null,null,"Guinea"]
[null,null,null,null,null,null,null,null,null,null,"Guinea-Bissau"]
["Résultat: Les Droits à la Santé Sexuelle, Reproductive et Maternelle",null,null,null,null,null,null,null,null,null,"Guyana"]
["Indicateur 6. Demandes satisfaites des contraceptifs modernes par des femmes âgées de 15 – 49 ans (Indicateur de l'ODD 3.7.1)",null,null,null,null,null,null,null,null,null,"Haiti"]
["Référence",null,"% des demandes satisfaites des contraceptifs modernes par des femmes âgées de 15 – 49 ans au sein de la population sur laquelle CARE envisage d'avoir un impact",null,"Dernière mesure pendant l’exercice fiscal",null,{"$f":"C77","v":"% des demandes satisfaites des contraceptifs modernes par des femmes âgées de 15 – 49 ans au sein de la population sur laquelle CARE envisage d'avoir un impact"},null,null,null,"Holy See"]
[null,null,"# des femmes âgées de 15 – 49 ans au sein de la population sur laquelle CARE envisage d'avoir un impact",null,null,null,{"$f":"C78","v":"# des femmes âgées de 15 – 49 ans au sein de la population sur laquelle CARE envisage d'avoir un impact"},null,null,null,"Honduras"]
["Veuillez décrire l’indicateur exacte que vous avez utilisé dans votre projet ou initiative, déclaré dans les lignes ci-dessus",null,null,null,"Veuillez nous faire part de tout autre commentaire que vous pourriez avoir concernant la déclaration de la contribution du projet à cet indicateur. Exemples : Des détails supplémentaires sur les données ci-dessus (p. ex. dates de la mesure), des données des mesures antérieures, des données avec un niveau de désagrégation différent (p. ex., âge, classe, race, etc.), des données qualitatives qui soutiennent ces données, etc. ",null,null,null,null,null,"Hong Kong"]
[null,null,null,null,null,null,null,null,null,null,"Hungary"]
["La contribution aux cibles de la Stratégie du Programme 2020 de CARE :","Total des nouveaux impacts liés à cet indicateur\n(# des femmes supplémentaires agées de 15-49 ans dont la demande des contraceptifs modernes a été satisfaite)",null,{"$f":"IFERROR((H77-D77)*H78,\"\")","v":0},"Total des nouveaux résultats/impacts orienté vers les cibles de Domaine de Résultat  \n(# des femmes agées de 15-49 ans dont la demande des contraceptifs modernes a été satisfaite)",null,null,{"$f":"IFERROR(H77*H78,\"\")","v":0},null,null,"Iceland"]
["Indicateur 7. Proportion des accouchements assistés par un personnel de santé qualifié (Indicateur de l'ODD 3.1.2)",null,null,null,null,null,null,null,null,null,"India"]
["Référence",null,"% des accouchements assistés par un personnel de santé qualifié au sein de la population sur laquelle CARE envisage d'avoir un impact",null,"Dernière mesure pendant l’exercice fiscal",null,{"$f":"C83","v":"% des accouchements assistés par un personnel de santé qualifié au sein de la population sur laquelle CARE envisage d'avoir un impact"},null,null,null,"Indonesia"]
[null,null,"# de naissances en une année ",null,null,null,{"$f":"C84","v":"# de naissances en une année "},null,null,null,"Iran"]
["Veuillez décrire l’indicateur exacte que vous avez utilisé dans votre projet ou initiative, déclaré dans les lignes ci-dessus",null,null,null,"Veuillez nous faire part de tout autre commentaire que vous pourriez avoir concernant la déclaration de la contribution du projet à cet indicateur. Exemples : Des détails supplémentaires sur les données ci-dessus (p. ex. dates de la mesure), des données des mesures antérieures, des données avec un niveau de désagrégation différent (p. ex., âge, classe, race, etc.), des données qualitatives qui soutiennent ces données, etc.",null,null,null,null,null,"Iraq"]
[null,null,null,null,null,null,null,null,null,null,"Ireland"]
["La contribution aux cibles de la Stratégie du Programme 2020 de CARE :","Total des nouveaux impacts liés à cet indicateur\n(# des naissances supplémentaires assistées par un personnel de santé qualifié)",null,{"$f":"IFERROR((H83-D83)*H84,\"\")","v":0},"Total des nouveaux résultats/impacts orienté vers les cibles de Domaine de Résultat\n(# des naissances assistées par un personnel de santé qualifié)",null,null,{"$f":"IFERROR(H83*H84,\"\")","v":0},null,null,"Israel"]
["Indicateur 8. Taux de natalité chez les adolescentes de 15 à 49 ans pour 1000 adolescentes du même groupe d’âge. Indicateur proxy : âge au premier accouchement",null,null,null,null,null,null,null,null,null,"Italy"]
["Référence",null,"Taux de natalité chez les adolescentes de 15 à 49 ans au sein de la population sur laquelle CARE envisage d'avoir un impact (pour 1000 adolescentes)",null,"Dernière mesure pendant l’exercice fiscal",null,{"$f":"C89","v":"Taux de natalité chez les adolescentes de 15 à 49 ans au sein de la population sur laquelle CARE envisage d'avoir un impact (pour 1000 adolescentes)"},null,null,null,"Jamaica"]
[null,null,"Le nombre total d’adolescentes au sein de la population sur laquelle CARE envisage d'avoir un impact",null,null,null,{"$f":"C90","v":"Le nombre total d’adolescentes au sein de la population sur laquelle CARE envisage d'avoir un impact"},null,null,null,"Japan"]
["Veuillez décrire l’indicateur exacte que vous avez utilisé dans votre projet ou initiative, déclaré dans les lignes ci-dessus",null,null,null,"Veuillez nous faire part de tout autre commentaire que vous pourriez avoir concernant la déclaration de la contribution du projet à cet indicateur. Exemples : Des détails supplémentaires sur les données ci-dessus (p. ex. dates de la mesure), des données des mesures antérieures, des données avec un niveau de désagrégation différent (p. ex., âge, classe, race, etc.), des données qualitatives qui soutiennent ces données, etc.",null,null,null,null,null,"Jordan"]
[null,null,null,null,null,null,null,null,null,null,"Kazakhstan"]
["La contribution aux cibles de la Stratégie du Programme 2020 de CARE :","Total des nouveaux impacts liés à cet indicateur\n(# d'adolescentes âgées de 15 à 19 ans ne vivant pas de grossesse)",null,{"$f":"IFERROR((D89-H89)/1000*H90,\"\")","v":0},null,null,null,null,null,null,"Kenya"]
["Indicateur 9. Proportion des femmes âgées de 15-49 ans qui prennent une décisions personnelles et éclairées en ce qui concerne les relations sexuelles, l’utilisation des contraceptifs et les soins relatifs à la santé reproductive  (Indicateur de l'ODD 5.6.1)",null,null,null,null,null,null,null,null,null,"Kiribati"]
["Référence",null,"% des femmes âgées de 15-49 ans qui prennent une décisions personnelles et éclairées en ce qui concerne les relations sexuelles, l’utilisation des contraceptifs et les soins relatifs à la santé reproductive au sein de la population sur laquelle CARE envisage d'avoir un impact",null,"Dernière mesure pendant l’exercice fiscal",null,{"$f":"C95","v":"% des femmes âgées de 15-49 ans qui prennent une décisions personnelles et éclairées en ce qui concerne les relations sexuelles, l’utilisation des contraceptifs et les soins relatifs à la santé reproductive au sein de la population sur laquelle CARE envisage d'avoir un impact"},null,null,null,"Korea, North"]
[null,null,"# des femmes âgées de 15-49 ans au sein de la population sur laquelle CARE envisage d'avoir un impact",null,null,null,"# des femmes âgées de 15-49 ans au sein de la population sur laquelle CARE envisage d'avoir un impact",null,null,null,"Korea, South"]
["Veuillez décrire l’indicateur exacte que vous avez utilisé dans votre projet ou initiative, déclaré dans les lignes ci-dessus",null,null,null,"Veuillez nous faire part de tout autre commentaire que vous pourriez avoir concernant la déclaration de la contribution du projet à cet indicateur. Exemples : Des détails supplémentaires sur les données ci-dessus (p. ex. dates de la mesure), des données des mesures antérieures, des données avec un niveau de désagrégation différent (p. ex., âge, classe, race, etc.), des données qualitatives qui soutiennent ces données, etc.",null,null,null,null,null,"Kosovo"]
[null,null,null,null,null,null,null,null,null,null,"Kuwait"]
["La contribution aux cibles de la Stratégie du Programme 2020 de CARE :","Total des nouveaux impacts liés à cet indicateur\n(# des femmes supplémentaires âgées de 15-49 ans  qui prennent une décisions personnelles et éclairées en ce qui concerne les relations sexuelles, l’utilisation des contraceptifs et les soins relatifs à la santé reproductive) ",null,{"$f":"IFERROR((H95-D95)*H96,\"\")","v":0},"Total des impacts nouveaux et maintenus orientés vers les cibles de Domaine de Résultat\n(# des femmes âgées de 15-49 ans  qui prennent une décisions personnelles et éclairées en ce qui concerne les relations sexuelles, l’utilisation des contraceptifs et les soins relatifs à la santé reproductive)",null,null,{"$f":"IFERROR(H95*H96,\"\")","v":0},null,null,"Kyrgyzstan"]
["Autres indicateurs relatifs aux Droits à la Santé Sexuelle, Reproductive et Maternelle : Veuillez déclarer les données ou tout autres indicateurs relatifs qui montrent les contributions de CARE et ses partenaires à ce Domaine de Résultat  ",null,null,null,null,null,null,null,null,null,"Laos"]
[null,null,null,null,null,null,null,null,null,null,"Latvia"]
["Résultat: Le Droit à une Vie Sans Violence ",null,null,null,null,null,null,null,null,null,"Lebanon"]
["Indicateur 10. % des personnes qui rejettent la violence du partenaire intime",null,null,null,null,null,null,null,null,null,"Lesotho"]
["Référence","% total des personnes qui rejettent la violence du partenaire intime au sein de la population sur laquelle CARE envisage d'avoir un impact",null,"% total des femmes et des filles qui rejettent la violence du partenaire intime au sein de la population sur laquelle CARE envisage d'avoir un impact",null,"% total des hommes et des garçons qui rejettent la violence du partenaire intime au sein de la population sur laquelle CARE envisage d'avoir un impact",null,{"$f":"IF(AND(E104=\"\",G104=\"\"),\"\",IF(C104>G104,IF(C104>E104,\"Attention: le % total ne peut pas être supérieur au % des femmes et filles et/ou au % de hommes et garçons\",\"\"),\"\"))","v":""},null,null,"Liberia"]
[null,"# total des femmes et des filles au sein de la population sur laquelle CARE envisage d'avoir un impact",null,{"$f":"D107","v":"# total des femmes et des filles au sein de la population sur laquelle CARE envisage d'avoir un impact"},null,"# total des hommes et des garçons au sein de la population sur laquelle CARE envisage d'avoir un impact",null,{"$f":"IF(AND(E105=\"\",G105=\"\"),\"\",IF(C105<(G105+E105),IF(C105<(G105+E105),\"Attention: le # total ne peut pas être inférieur à la somme du # des femmes et filles et/ou du # de hommes et garçons\",\"\"),\"\"))","v":""},null,null,"Libya"]
["Dernière mesure pendant l’exercice fiscal",{"$f":"B104","v":"% total des personnes qui rejettent la violence du partenaire intime au sein de la population sur laquelle CARE envisage d'avoir un impact"},null,{"$f":"D104","v":"% total des femmes et des filles qui rejettent la violence du partenaire intime au sein de la population sur laquelle CARE envisage d'avoir un impact"},null,{"$f":"F104","v":"% total des hommes et des garçons qui rejettent la violence du partenaire intime au sein de la population sur laquelle CARE envisage d'avoir un impact"},null,{"$f":"IF(AND(E106=\"\",G106=\"\"),\"\",IF(C106>G106,IF(C106>E106,\"Attention: le % total ne peut pas être supérieur au % des femmes et filles et/ou au % de hommes et garçons\",\"\"),\"\"))","v":""},null,null,"Liechtenstein"]
[null,{"$f":"B105","v":"# total des femmes et des filles au sein de la population sur laquelle CARE envisage d'avoir un impact"},null,"# total des femmes et des filles au sein de la population sur laquelle CARE envisage d'avoir un impact",null,{"$f":"F105","v":"# total des hommes et des garçons au sein de la population sur laquelle CARE envisage d'avoir un impact"},null,{"$f":"IF(AND(E107=\"\",G107=\"\"),\"\",IF(C107<(G107+E107),IF(C107<(G107+E107),\"Attention: le # total ne peut pas être inférieur à la somme du # des femmes et filles et/ou du # de hommes et garçons\",\"\"),\"\"))","v":""},null,null,"Lithuania"]
["Veuillez décrire l’indicateur exacte que vous avez utilisé dans votre projet ou initiative, déclaré dans les lignes ci-dessus",null,null,null,"Veuillez nous faire part de tout autre commentaire que vous pourriez avoir concernant la déclaration de la contribution du projet à cet indicateur. Exemples : Des détails supplémentaires sur les données ci-dessus (p. ex. dates de la mesure), des données des mesures antérieures, des données avec un niveau de désagrégation différent (p. ex., âge, classe, race, etc.), des données qualitatives qui soutiennent ces données, etc.\n\nNote : Les données pour cet indicateur peuvent être désagrégées par les 5 justifications de la violence, utilisée pour calculer l'indicateur : a) si elle sort sans avertir son mari, b) si elle néglige les enfants, c) si elle se dispute avec le mari, d) si elle refuse d'avoir des relations sexuelles avec le mari, et e) si elle brûle la nourriture\n",null,null,null,null,null,"Luxembourg"]
[null,null,null,null,null,null,null,null,null,null,"Macau"]
["La contribution aux cibles de la Stratégie du Programme 2020 de CARE :","Total des nouveaux impacts liés à cet indicateur\n(# des personnes supplémentaires qui rejettent la violence du partenaire intime)",null,{"$f":"IFERROR(C106*C107-C104*C107,\"\")","v":0},"Total des impacts nouveaux et maintenus orientés vers les cibles de Domaine de Résultat\n(# des personnes supplémentaires qui rejettent la violence du partenaire intime)",null,null,{"$f":"IFERROR(C106*C107,\"\")","v":0},null,null,"Macedonia"]
["Indicateur 11. % des femmes et des filles âgées de 15 ans ou plus ayant vécu en couple victimes des violences physiques, sexuelles ou psychologique infligées par leur partenaire actuel ou ancien, au cours des 12 derniers mois (Indicateur de l'ODD 5.2.1)",null,null,null,null,null,null,null,null,null,"Madagascar"]
["Référence","% des femmes et des filles âgées de 15 ans ou plus ayant vécu en couple victimes des violences physiques, sexuelles ou psychologique infligées par leur partenaire actuel ou ancien au sein de la population sur laquelle CARE envisage d'avoir un impact",null,"Dernière mesure pendant l’exercice fiscal",null,{"$f":"B112","v":"% des femmes et des filles âgées de 15 ans ou plus ayant vécu en couple victimes des violences physiques, sexuelles ou psychologique infligées par leur partenaire actuel ou ancien au sein de la population sur laquelle CARE envisage d'avoir un impact"},null,null,null,null,"Malawi"]
[null,"# des femmes et des filles âgées de 15 ans ou plus au sein de la population sur laquelle CARE envisage d'avoir un impact",null,null,null,{"$f":"B113","v":"# des femmes et des filles âgées de 15 ans ou plus au sein de la population sur laquelle CARE envisage d'avoir un impact"},null,null,null,null,"Malaysia"]
["Veuillez décrire l’indicateur exacte que vous avez utilisé dans votre projet ou initiative, déclaré dans les lignes ci-dessus",null,null,null,"Veuillez nous faire part de tout autre commentaire que vous pourriez avoir concernant la déclaration de la contribution du projet à cet indicateur. Exemples : Des détails supplémentaires sur les données ci-dessus (p. ex. dates de la mesure), des données des mesures antérieures, des données avec un niveau de désagrégation différent (p. ex., âge, classe, race, etc.), des données qualitatives qui soutiennent ces données, etc.\n\nNote : les données pour cet indicateur peuvent être désagrégées par les différents types de violence : physique, sexuelle ou psychologique\n",null,null,null,null,null,"Maldives"]
[null,null,null,null,null,null,null,null,null,null,"Mali"]
["La contribution aux cibles de la Stratégie du Programme 2020 de CARE :","Total des nouveaux impacts liés à cet indicateur \n(# des femmes et des filles supplémentaires âgées de 15 ans ou plus ayant vécu en couple victimes des violences physiques, sexuelles ou psychologique infligées par leur partenaire actuel ou ancien, au cours des 12 derniers mois)",null,{"$f":"IFERROR((C112-G112)*G113,\"\")","v":0},null,null,null,null,null,null,"Malta"]
["Indicateur 12. % des femmes et des filles âgées de 15 ans ou plus, victimes des violences physiques, sexuelles ou psychologique infligées par des personnes autres que leur partenaire intime, au cours des 12 derniers mois (Indicateur de l'ODD 5.2.2)",null,null,null,null,null,null,null,null,null,"Marshall Islands"]
["Référence","% des femmes et des filles âgées de 15 ans ou plus, victimes des violences physiques, sexuelles ou psychologique infligées par des personnes autres que leur partenaire intime au sein de la population sur laquelle CARE envisage d'avoir un impact",null,"Dernière mesure pendant l’exercice fiscal",null,{"$f":"B118","v":"% des femmes et des filles âgées de 15 ans ou plus, victimes des violences physiques, sexuelles ou psychologique infligées par des personnes autres que leur partenaire intime au sein de la population sur laquelle CARE envisage d'avoir un impact"},null,null,null,null,"Mauritania"]
[null,"# des femmes et des filles âgées de 15 ans ou plus au sein de la population sur laquelle CARE envisage d'avoir un impactt",null,null,null,{"$f":"B119","v":"# des femmes et des filles âgées de 15 ans ou plus au sein de la population sur laquelle CARE envisage d'avoir un impactt"},null,null,null,null,"Mauritius"]
["Veuillez décrire l’indicateur exacte que vous avez utilisé dans votre projet ou initiative, déclaré dans les lignes ci-dessus",null,null,null,"Veuillez nous faire part de tout autre commentaire que vous pourriez avoir concernant la déclaration de la contribution du projet à cet indicateur. Exemples : Des détails supplémentaires sur les données ci-dessus (p. ex. dates de la mesure), des données des mesures antérieures, des données avec un niveau de désagrégation différent (p. ex., âge, classe, race, etc.), des données qualitatives qui soutiennent ces données, etc.\n\nNote : les données pour cet indicateur peuvent être désagrégées par les différents types de violence : physique, sexuelle ou psychologique",null,null,null,null,null,"Mexico"]
[null,null,null,null,null,null,null,null,null,null,"Micronesia"]
["La contribution aux cibles de la Stratégie du Programme 2020 de CARE :","Total des nouveaux impacts liés à cet indicateur\n(# % des femmes et des filles aupplémentaires âgées de 15 ans ou plus, victimes des violences physiques, sexuelles ou psychologique infligées par des personnes autres que leur partenaire intime, au cours des 12 derniers mois)",null,{"$f":"IFERROR((C118-G118)*G119,\"\")","v":0},null,null,null,null,null,null,"Moldova"]
["Autres indicateurs relatifs au Droit à une Vie Sans Violence : Veuillez déclarer les données ou tout autres indicateurs relatifs qui montrent les contributions de CARE et ses partenaires à ce Domaine de Résultat.",null,null,null,null,null,null,null,null,null,"Monaco"]
[null,null,null,null,null,null,null,null,null,null,"Mongolia"]
["Résultat: La Sécurité Alimentaire et Nutritionnelle & La Résilience au Changement Climatique ",null,null,null,null,null,null,null,null,null,"Montenegro"]
["Indicateur 13. Prévalence de la population en insécurité alimentaire modérée ou sévère, basée sur l'Échelle de l'Expérience de l'Insécurité Alimentaire (FIES) (Indicateur de l'ODD 2.1.2)",null,null,null,null,null,null,null,null,null,"Morocco"]
["Référence (modéré et sévère)","% total de la population en insécurité alimentaire modérée ou sévère au sein de la population sur laquelle CARE envisage d'avoir un impact",null,"% total des femmes et des filles en insécurité alimentaire modérée ou sévère au sein de la population sur laquelle CARE envisage d'avoir un impact",null,"% total des hommes et des garçons en insécurité alimentaire modérée ou sévère au sein de la population sur laquelle CARE envisage d'avoir un impact",null,{"$f":"IF(AND(E127=\"\",G127=\"\"),\"\",IF(C127>G127,IF(C127>E127,\"Attention: le % total ne peut pas être supérieur au % des femmes et filles et/ou au % de hommes et garçons\",\"\"),\"\"))","v":""},null,null,"Mozambique"]
[null,"# total de la population au sein de la population sur laquelle CARE envisage d'avoir un impact",null,"# total des femmes et des filles au sein de la population sur laquelle CARE envisage d'avoir un impact",null,"# total des hommes et des garçons au sein de la population sur laquelle CARE envisage d'avoir un impact",null,{"$f":"IF(AND(E128=\"\",G128=\"\"),\"\",IF(C128<(G128+E128),IF(C128<(G128+E128),\"Attention: le # total ne peut pas être inférieur à la somme du # des femmes et filles et/ou du # de hommes et garçons\",\"\"),\"\"))","v":""},null,null,"Myanmar"]
["Dernière mesure pendant l’exercice fiscal (modéré et sévère)",{"$f":"B127","v":"% total de la population en insécurité alimentaire modérée ou sévère au sein de la population sur laquelle CARE envisage d'avoir un impact"},null,{"$f":"D127","v":"% total des femmes et des filles en insécurité alimentaire modérée ou sévère au sein de la population sur laquelle CARE envisage d'avoir un impact"},null,{"$f":"F127","v":"% total des hommes et des garçons en insécurité alimentaire modérée ou sévère au sein de la population sur laquelle CARE envisage d'avoir un impact"},null,{"$f":"IF(AND(E129=\"\",G129=\"\"),\"\",IF(C129>G129,IF(C129>E129,\"Attention: le % total ne peut pas être supérieur au % des femmes et filles et/ou au % de hommes et garçons\",\"\"),\"\"))","v":""},null,null,"Namibia"]
[null,{"$f":"B128","v":"# total de la population au sein de la population sur laquelle CARE envisage d'avoir un impact"},null,{"$f":"D128","v":"# total des femmes et des filles au sein de la population sur laquelle CARE envisage d'avoir un impact"},null,{"$f":"F128","v":"# total des hommes et des garçons au sein de la population sur laquelle CARE envisage d'avoir un impact"},null,{"$f":"IF(AND(E130=\"\",G130=\"\"),\"\",IF(C130<(G130+E130),IF(C130<(G130+E130),\"Attention: le # total ne peut pas être inférieur à la somme du # des femmes et filles et/ou du # de hommes et garçons\",\"\"),\"\"))","v":""},null,null,"Nauru"]
["Veuillez décrire l’indicateur exacte que vous avez utilisé dans votre projet ou initiative, déclaré dans les lignes ci-dessus",null,null,"Le nombre déclaré ci-dessus de la population d’impact inclut-il les membres de la famille ? ","Veuillez nous faire part de tout autre commentaire que vous pourriez avoir concernant la déclaration de la contribution du projet à cet indicateur. Exemples : Des détails supplémentaires sur les données ci-dessus (p. ex. dates de la mesure), des données des mesures antérieures, des données avec un niveau de désagrégation différent (p. ex., âge, classe, race, etc.), des données qualitatives qui soutiennent ces données, etc.",null,null,null,null,null,"Nepal"]
[null,null,null,"(Sélectionnez dans la liste)",null,null,null,null,null,null,"Netherlands"]
["La contribution aux cibles de la Stratégie du Programme 2020 de CARE :","Le nouvel impact total lié à cet indicateur\n(# des personnes supplémentaires n'étant plus confrontées à une insécurité alimentaire modérée ou sévère)",null,{"$f":"IFERROR(C127*C130-C129*C130,\"\")","v":0},"Le nouvel impact total orienté vers les cibles de Domaine de Résultat (y compris les membres de la famille)",null,null,{"$f":"IFERROR(IF(D132=\"NO\",D133*$E$13,D133),D133)","v":0},null,null,"Netherlands Antilles"]
["Indicateur 14. Prévalence de retard de croissance chez les filles et les garçons de moins de 5 ans (Indicateur de l'ODD 2.2.1)",null,null,null,null,null,null,null,null,null,"New Zealand"]
["Référence","% total de retard de croissance chez les filles et les garçons de moins de 5 ans, au sein de la population sur laquelle CARE envisage d'avoir un impact",null,"% total de retard de croissance chez les filles de moins de 5 ans, au sein de la population sur laquelle CARE envisage d'avoir un impact",null,"% total de retard de croissance chez les garçons de moins de 5 ans, au sein de la population sur laquelle CARE envisage d'avoir un impact",null,{"$f":"IF(AND(E135=\"\",G135=\"\"),\"\",IF(C135>G135,IF(C135>E135,\"Attention: le % total ne peut pas être supérieur au % des femmes et filles et/ou au % de hommes et garçons\",\"\"),\"\"))","v":""},null,null,"Nicaragua"]
[null,"# total des filles et des garçons de moins de 5 ans, au sein de la population sur laquelle CARE envisage d'avoir un impact",null,"# total des filles de moins de 5 ans, au sein de la population sur laquelle CARE envisage d'avoir un impact",null,"# total des garçons de moins de 5 ans, au sein de la population sur laquelle CARE envisage d'avoir un impact",null,{"$f":"IF(AND(E136=\"\",G136=\"\"),\"\",IF(C136<(G136+E136),IF(C136<(G136+E136),\"Attention: le # total ne peut pas être inférieur à la somme du # des femmes et filles et/ou du # de hommes et garçons\",\"\"),\"\"))","v":""},null,null,"Niger"]
["Dernière mesure pendant l’exercice fiscal ",{"$f":"B135","v":"% total de retard de croissance chez les filles et les garçons de moins de 5 ans, au sein de la population sur laquelle CARE envisage d'avoir un impact"},null,{"$f":"D135","v":"% total de retard de croissance chez les filles de moins de 5 ans, au sein de la population sur laquelle CARE envisage d'avoir un impact"},null,{"$f":"F135","v":"% total de retard de croissance chez les garçons de moins de 5 ans, au sein de la population sur laquelle CARE envisage d'avoir un impact"},null,{"$f":"IF(AND(E137=\"\",G137=\"\"),\"\",IF(C137>G137,IF(C137>E137,\"Attention: le % total ne peut pas être supérieur au % des femmes et filles et/ou au % de hommes et garçons\",\"\"),\"\"))","v":""},null,null,"Nigeria"]
[null,{"$f":"B136","v":"# total des filles et des garçons de moins de 5 ans, au sein de la population sur laquelle CARE envisage d'avoir un impact"},null,{"$f":"D136","v":"# total des filles de moins de 5 ans, au sein de la population sur laquelle CARE envisage d'avoir un impact"},null,{"$f":"F136","v":"# total des garçons de moins de 5 ans, au sein de la population sur laquelle CARE envisage d'avoir un impact"},null,{"$f":"IF(AND(E138=\"\",G138=\"\"),\"\",IF(C138<(G138+E138),IF(C138<(G138+E138),\"Attention: le # total ne peut pas être inférieur à la somme du # des femmes et filles et/ou du # de hommes et garçons\",\"\"),\"\"))","v":""},null,null,"Norway"]
["Veuillez décrire l’indicateur exacte que vous avez utilisé dans votre projet ou initiative, déclaré dans les lignes ci-dessus",null,null,"Le nombre déclaré ci-dessus de la population d’impact inclut-il les membres de la famille ? ","Veuillez nous faire part de tout autre commentaire que vous pourriez avoir concernant la déclaration de la contribution du projet à cet indicateur. Exemples : Des détails supplémentaires sur les données ci-dessus (p. ex. dates de la mesure), des données des mesures antérieures, des données avec un niveau de désagrégation différent (p. ex., âge, classe, race, etc.), des données qualitatives qui soutiennent ces données, etc.",null,null,null,null,null,"Oman"]
[null,null,null,"(Sélectionnez dans la liste)",null,null,null,null,null,null,"Pakistan"]
["La contribution aux cibles de la Stratégie du Programme 2020 de CARE :","Le nouvel impact total lié à cet indicateur\n(# # total des filles et des garçons supplémentaires de moins de 5 ans qui n'ont plus de retard de croissance)",null,{"$f":"C135*C138-C137*C138","v":0},"Le nouvel impact total orienté vers les cibles de Domaine de Résultat (y compris les membres de la famille)",null,null,{"$f":"IFERROR(IF(D140=\"NO\",D141*$E$13,D141),D141)","v":0},null,null,"Palau"]
["Indicateur 15. % des personnes ayant une meilleure capacité de développer la résilience face aux effets du changement climatique et de la variabilité",null,null,null,null,null,null,null,null,null,"Palestinian Territories"]
["Référence","% total des personnes ayant une meilleure capacité de développer la résilience face aux effets du changement climatique et de la variabilité au sein de la population sur laquelle CARE envisage d'avoir un impact",null,"% total des femmes et des filles ayant une meilleure capacité de développer la résilience face aux effets du changement climatique et de la variabilité au sein de la population sur laquelle CARE envisage d'avoir un impact",null,"% total des hommes et des garçons ayant une meilleure capacité de développer la résilience face aux effets du changement climatique et de la variabilité au sein de la population sur laquelle CARE envisage d'avoir un impact",null,{"$f":"IF(AND(E143=\"\",G143=\"\"),\"\",IF(C143>G143,IF(C143>E143,\"Attention: le % total ne peut pas être supérieur au % des femmes et filles et/ou au % de hommes et garçons\",\"\"),\"\"))","v":""},null,null,"Panama"]
[null,"# total des personnes au sein de la population sur laquelle CARE envisage d'avoir un impact",null,"# total des femmes et des filles au sein de la population sur laquelle CARE envisage d'avoir un impact",null,"# total des hommes et des garçons au sein de la population sur laquelle CARE envisage d'avoir un impact",null,{"$f":"IF(AND(E144=\"\",G144=\"\"),\"\",IF(C144<(G144+E144),IF(C144<(G144+E144),\"Attention: le # total ne peut pas être inférieur à la somme du # des femmes et filles et/ou du # de hommes et garçons\",\"\"),\"\"))","v":""},null,null,"Papua New Guinea"]
["Dernière mesure pendant l’exercice fiscal","% total des personnes ayant une meilleure capacité de développer la résilience face aux effets du changement climatique et de la variabilité au sein de la population sur laquelle CARE envisage d'avoir un impact",null,"% total des femmes et des filles ayant une meilleure capacité de développer la résilience face aux effets du changement climatique et de la variabilité au sein de la population sur laquelle CARE envisage d'avoir un impact",null,"% total des hommes et des garçons ayant une meilleure capacité de développer la résilience face aux effets du changement climatique et de la variabilité au sein de la population sur laquelle CARE envisage d'avoir un impact",null,{"$f":"IF(AND(E145=\"\",G145=\"\"),\"\",IF(C145>G145,IF(C145>E145,\"Attention: le % total ne peut pas être supérieur au % des femmes et filles et/ou au % de hommes et garçons\",\"\"),\"\"))","v":""},null,null,"Paraguay"]
[null,"# total des personnes au sein de la population sur laquelle CARE envisage d'avoir un impact",null,"# total des femmes et des filles au sein de la population sur laquelle CARE envisage d'avoir un impact",null,"# total des hommes et des garçons au sein de la population sur laquelle CARE envisage d'avoir un impact",null,{"$f":"IF(AND(E146=\"\",G146=\"\"),\"\",IF(C146<(G146+E146),IF(C146<(G146+E146),\"Attention: le # total ne peut pas être inférieur à la somme du # des femmes et filles et/ou du # de hommes et garçons\",\"\"),\"\"))","v":""},null,null,"Peru"]
["Veuillez décrire l’indicateur exacte que vous avez utilisé dans votre projet ou initiative, déclaré dans les lignes ci-dessus",null,null,"Le nombre déclaré ci-dessus de la population d’impact inclut-il les membres de la famille ? ","Veuillez nous faire part de tout autre commentaire que vous pourriez avoir concernant la déclaration de la contribution du projet à cet indicateur. Exemples : Des détails supplémentaires sur les données ci-dessus (p. ex. dates de la mesure), des données des mesures antérieures, des données avec un niveau de désagrégation différent (p. ex., âge, classe, race, etc.), des données qualitatives qui soutiennent ces données, etc.",null,null,null,null,null,"Philippines"]
[null,null,null,"(Sélectionnez dans la liste)",null,null,null,null,null,null,"Poland"]
["La contribution aux cibles de la Stratégie du Programme 2020 de CARE :","Le nouvel impact total lié à cet indicateur\n(# des personnes supplémentaires ayant une meilleure capacité de développer la résilience) ",null,{"$f":"C145*C146-C143*C146","v":0},"Le nouvel impact total orienté vers les cibles de Domaine de Résultat (y compris les membres de la famille)",null,null,{"$f":"IFERROR(IF(D148=\"NO\",D149*$E$13,D149),D149)","v":0},null,null,"Portugal"]
["Autres indicateurs relatifs à la Sécurité Alimentaire et Nutritionnelle & La Résilience au Changement Climatique : Veuillez déclarer les données ou tout autres indicateurs relatifs qui montrent les contributions de CARE et ses partenaires à ce Domaine de Résultat, tels que les indicateurs supplémentaires de la Sécurité Alimentaire et Nutritionnelle",null,null,null,null,null,null,null,null,null,"Qatar"]
[null,null,null,null,null,null,null,null,null,null,"Romania"]
["Résultat: L'Autonomisation Économique des Femmes ",null,null,null,null,null,null,null,null,null,"Russia"]
["Indicateur 16. # et % des femmes qui sont des utilisatrices actives des services financiers (désagrégés par les services formels et informels)",null,null,null,null,null,null,null,null,null,"Rwanda"]
["Les utilisatrices actives des services financiers INFORMELS",null,null,null,null,null,null,null,null,null,"Saint Kitts and Nevis"]
["Référence",null,"# des femmes qui sont des utilisatrices actives des services financiers informels au sein de la population sur laquelle CARE envisage d'avoir un impact",null,"Dernière mesure pendant l’exercice fiscal",null,"# des femmes qui sont des utilisatrices actives des services financiers informels au sein de la population sur laquelle CARE envisage d'avoir un impact",null,null,null,"Saint Lucia"]
[null,null,"# des femmes au sein de la population sur laquelle CARE envisage d'avoir un impact",null,null,null,"# women in the population on which CARE seeks to impact",null,null,null,"Saint Vincent and the Grenadines"]
["La contribution aux cibles de la Stratégie du Programme 2020 de CARE :","Total des nouveaux impacts liés à cet indicateur\n(# des utilisatrices actives supplémentsires des services financiers informels) ",null,{"$f":"IFERROR(H155-D155,\"\")","v":0},"Le changement en % de l’accès des femmes (en points de pourcentage)",null,null,{"$f":"IFERROR((H155/H156-D155/H156),\"\")","v":""},null,null,"Samoa"]
["Les utilisatrices actives des services financiers FORMELS",null,null,null,null,null,null,null,null,null,"San Marino"]
["Référence",null,"# des femmes qui sont des utilisatrices actives des services financiers officiels au sein de la population sur laquelle CARE envisage d'avoir un impact",null,"Dernière mesure pendant l’exercice fiscal",null,"# des femmes qui sont des utilisatrices actives des services financiers officiels au sein de la population sur laquelle CARE envisage d'avoir un impact",null,null,null,"Sao Tome and Principe"]
[null,null,{"$f":"C156","v":"# des femmes au sein de la population sur laquelle CARE envisage d'avoir un impact"},null,null,null,{"$f":"C160","v":"# des femmes au sein de la population sur laquelle CARE envisage d'avoir un impact"},null,null,null,"Saudi Arabia"]
["La contribution aux cibles de la Stratégie du Programme 2020 de CARE :","Total des nouveaux impacts liés à cet indicateur\n(# des utilisatrices actives supplémentsires des services financiers officiels) ",null,{"$f":"IFERROR(H159-D159,\"\")","v":0},"Le changement en % de l’accès des femmes (en points de pourcentage)",null,null,{"$f":"IFERROR((H159/H160-D159/H160),\"\")","v":""},null,null,"Senegal"]
["Veuillez décrire les indicateurs exactes que vous avez utilisé dans votre projet ou initiative, déclaré dans les lignes ci-dessus",null,null,null,"Veuillez nous faire part de tout autre commentaire que vous pourriez avoir concernant la déclaration de la contribution du projet à cet indicateur. Exemples : Des détails supplémentaires sur les données ci-dessus (p. ex. dates de la mesure), des données des mesures antérieures, des données avec un niveau de désagrégation différent (p. ex., âge, classe, race, etc.), des données qualitatives qui soutiennent ces données, etc. ",null,null,null,null,null,"Serbia"]
[null,null,null,null,null,null,null,null,null,null,"Seychelles"]
["Indicateur 17. % des femmes qui (affirment) être capable de participer à titre égal aux décisions financières du ménage ",null,null,null,null,null,null,null,null,null,"Sierra Leone"]
["Référence",null,"% des femmes qui sont capable de participer à titre égal aux décisions financières du ménage au sein de la population sur laquelle CARE envisage d'avoir un impact",null,"Dernière mesure pendant l’exercice fiscal",null,{"$f":"C165","v":"% des femmes qui sont capable de participer à titre égal aux décisions financières du ménage au sein de la population sur laquelle CARE envisage d'avoir un impact"},null,null,null,"Singapore"]
[null,null,"# des femmes au sein de la population sur laquelle CARE envisage d'avoir un impact",null,null,null,{"$f":"C166","v":"# des femmes au sein de la population sur laquelle CARE envisage d'avoir un impact"},null,null,null,"Sint Maarten"]
["Veuillez décrire l’indicateur exacte que vous avez utilisé dans votre projet ou initiative, déclaré dans les lignes ci-dessus",null,null,null,"Veuillez nous faire part de tout autre commentaire que vous pourriez avoir concernant la déclaration de la contribution du projet à cet indicateur. Exemples : Des détails supplémentaires sur les données ci-dessus (p. ex. dates de la mesure), des données des mesures antérieures, des données avec un niveau de désagrégation différent (p. ex., âge, classe, race, etc.), des données qualitatives qui soutiennent ces données, etc.",null,null,null,null,null,"Slovakia"]
[null,null,null,null,null,null,null,null,null,null,"Slovenia"]
["La contribution aux cibles de la Stratégie du Programme 2020 de CARE :","Total des nouveaux impacts liés à cet indicateur\n(# des femmes supplément qui participent à titre égal aux décisions financières du ménage) ",null,{"$f":"IFERROR((H165-D165)*H166,\"\")","v":0},"Total des impacts nouveaux et maintenus orientés vers les cibles de Domaine de Résultat\n(# des femmes supplément qui participent à titre égal aux décisions financières du ménage)",null,null,{"$f":"IFERROR(H165*H166,\"\")","v":0},null,null,"Solomon Islands"]
["Indicateur 18. # et % des femmes adhérant des unions, des groupes de femme ou des coopératives à travers laquelle elles peuvent exprimer leurs droits de travail",null,null,null,null,null,null,null,null,null,"Somalia"]
["Référence",null,"# des femmes adhérant des unions, des groupes de femme ou des coopératives à travers laquelle elles peuvent exprimer leurs droits de travail",null,"Dernière mesure pendant l’exercice fiscal",null,"# des femmes adhérant des unions, des groupes de femme ou des coopératives à travers laquelle elles peuvent exprimer leurs droits de travail",null,null,null,"South Africa"]
[null,null,"# des femmes au sein de la population sur laquelle CARE envisage d'avoir un impact",null,null,null,{"$f":"C172","v":"# des femmes au sein de la population sur laquelle CARE envisage d'avoir un impact"},null,null,null,"South Sudan"]
["Veuillez décrire l’indicateur exacte que vous avez utilisé dans votre projet ou initiative, déclaré dans les lignes ci-dessus",null,null,null,"Veuillez nous faire part de tout autre commentaire que vous pourriez avoir concernant la déclaration de la contribution du projet à cet indicateur. Exemples : Des détails supplémentaires sur les données ci-dessus (p. ex. dates de la mesure), des données des mesures antérieures, des données avec un niveau de désagrégation différent (p. ex., âge, classe, race, etc.), des données qualitatives qui soutiennent ces données, etc.",null,null,null,null,null,"Spain"]
[null,null,null,null,null,null,null,null,null,null,"Sri Lanka"]
["La contribution aux cibles de la Stratégie du Programme 2020 de CARE :","Total des nouveaux impacts liés à cet indicateur\n(# des femmes supplémentaires adhérant des unions, des groupes de femme ou des coopératives à travers laquelle elles peuvent exprimer leurs droits de travail)",null,{"$f":"IFERROR(H171-D171,\"\")","v":0},"Le changement d’adhésion des femmes en % (en points de pourcentage)",null,null,{"$f":"IFERROR((H171/H172-D171/H172),\"\")","v":""},null,null,"Sudan"]
["Autres indicateurs relatifs à l'Autonomisation Économique des Femmes : Veuillez déclarer les données ou tout autres indicateurs relatifs qui montrent les contributions de CARE et ses partenaires à ce Domaine de Résultat, tels que les indicateurs supplémentaires de l'Autonomisation Économique des Femmes",null,null,null,null,null,null,null,null,null,"Suriname"]
[null,null,null,null,null,null,null,null,null,null,"Swaziland"]
["L'Approche de CARE",null,null,null,null,null,null,null,null,null,"Sweden"]
["Indicateur 19. # et % des personnes de tous genres qui ont participé de façon significative dans les espaces de prise de décisions officielles (gérées gouvernementale) et informelles (gérées par société civile ou par le secteur privé)",null,null,null,null,null,null,null,null,null,"Switzerland"]
["Référence","# des personnes soutenues par CARE et ses partenaires qui ont participé de façon significative dans les espaces de prise de décisions ",null,"# des femmes et des filles soutenues par CARE et ses partenaires qui ont participé de façon significative dans les espaces de prise de décisions  ",null,"# des hommes et des garçons soutenus par CARE et ses partenaires qui ont participé de façon significative dans les espaces de prise de décisions ",null,{"$f":"IF(AND(E180=\"\",G180=\"\"),\"\",IF(C180<(G180+E180),IF(C180<(G180+E180),\"Attention: le # total ne peut pas être inférieur à la somme du # des femmes et filles et/ou du # de hommes et garçons\",\"\"),\"\"))","v":""},null,null,"Syria"]
[null,"# des personnes soutenues par CARE et ses partenaires qui occupent des postes de leadership dans ces espaces de prise de décisions ",null,"# des femmes et des filles soutenues par CARE et ses partenaires qui occupent des postes de leadership dans ces espaces de prise de décisions",null,"# des hommes et des garçons soutenus par CARE et ses partenaires qui occupent des postes de leadership dans ces espaces de prise de décisions ",null,{"$f":"IF(AND(E181=\"\",G181=\"\"),\"\",IF(C181<(G181+E181),IF(C181<(G181+E181),\"Attention: le # total ne peut pas être inférieur à la somme du # des femmes et filles et/ou du # de hommes et garçons\",\"\"),\"\"))","v":""},null,null,"Taiwan"]
["Dernière mesure pendant l’exercice fiscal",{"$f":"B180","v":"# des personnes soutenues par CARE et ses partenaires qui ont participé de façon significative dans les espaces de prise de décisions "},null,{"$f":"D180","v":"# des femmes et des filles soutenues par CARE et ses partenaires qui ont participé de façon significative dans les espaces de prise de décisions  "},null,{"$f":"F180","v":"# des hommes et des garçons soutenus par CARE et ses partenaires qui ont participé de façon significative dans les espaces de prise de décisions "},null,{"$f":"IF(AND(E182=\"\",G182=\"\"),\"\",IF(C182<(G182+E182),IF(C182<(G182+E182),\"Attention: le # total ne peut pas être inférieur à la somme du # des femmes et filles et/ou du # de hommes et garçons\",\"\"),\"\"))","v":""},null,null,"Tajikistan"]
[null,{"$f":"B181","v":"# des personnes soutenues par CARE et ses partenaires qui occupent des postes de leadership dans ces espaces de prise de décisions "},null,{"$f":"D181","v":"# des femmes et des filles soutenues par CARE et ses partenaires qui occupent des postes de leadership dans ces espaces de prise de décisions"},null,{"$f":"F181","v":"# des hommes et des garçons soutenus par CARE et ses partenaires qui occupent des postes de leadership dans ces espaces de prise de décisions "},null,{"$f":"IF(AND(E183=\"\",G183=\"\"),\"\",IF(C183<(G183+E183),IF(C183<(G183+E183),\"Attention: le # total ne peut pas être inférieur à la somme du # des femmes et filles et/ou du # de hommes et garçons\",\"\"),\"\"))","v":""},null,null,"Tanzania"]
["Veuillez décrire le(s) type(s) d’espaces de prise de décisions","Espaces officiels (c.-à-d espaces invités où la société civile a un siège et une voix/dire, y compris les autorités traditionnelles. Il peut s'agir des groupes de travail de l'assemblée constitutionnelle ou des caucus, des commissions des droits de l'homme, des comités nationaux des plans d’action, des groupes consultatifs sectoriels, des réunions d’assemblée de province/gouvernorat/district, le budget participatif de district ou réunions d'audit publique, les comités de district de coordination de la nutrition ou les comités de gestion des catastrophes, la santé communautaire et de comités de l'éducation, l'eau ou les comités de gestion des déchets, village/communauté/comités de développement de tutelle ou d'associations, etc.)",null,null,null,null,null,null,null,null,"Thailand"]
[null,"Espaces informels (p. ex., forums de développement communautaire, fiche d’évaluation communautaire, les audits sociaux, les comités de suivi de plan d'action communautaire, les groupes de travail sur la charte des citoyens, , clubs de la paix, le comité de la santé des groupes de suivi, les comités de parents-enseignants, comités de gestion des forêts, les comites des promotions des pilotages, les forums de développement des tutelles, ou d'autres espaces qui peuvent fournir une plate-forme civique pour l'impact de nos groupes (p. ex. Associations villageoises ou des groupes de producteurs qui sont utilisés pour promouvoir la participation politique des femmes).",null,null,null,null,null,null,null,null,"Timor-Leste"]
["Veuillez décrire l’indicateur exacte que vous avez utilisé dans votre projet ou initiative, déclaré dans les lignes ci-dessus",null,null,null,"Veuillez nous faire part de tout autre commentaire que vous pourriez avoir concernant la déclaration de la contribution du projet à cet indicateur. Exemples : Des détails supplémentaires sur les données ci-dessus (p. ex. dates de la mesure), des données des mesures antérieures, des données avec un niveau de désagrégation différent (p. ex., âge, classe, race, etc.), des données qualitatives qui soutiennent ces données, etc.",null,null,null,null,null,"Togo"]
[null,null,null,null,null,null,null,null,null,null,"Tonga"]
["La contribution aux cibles de la Stratégie du Programme 2020 de CARE :","L'accroissement total des nombres avec une participation significative ",null,{"$f":"C182-C180","v":0},"L'augmentation total des femmes occupant des postes de direction",null,null,{"$f":"E183-E181","v":0},null,null,"Trinidad and Tobago"]
["Indicateur 20. # des nouvelles politiques ou des politiques amendées, des législations, des programmes publics, et/ou des budgets tenant compte des droits, des besoins et des demandes des hommes et des femmes",null,null,null,null,null,null,null,null,null,"Tunisia"]
["Nombre de nouvelles politiques ou des politiques amendées, de législations, de programmes publics, et/ou de budgets",null,null,"Veuillez nommer et donner une brève description des nouvelles politiques ou des politiques amendées, des législations, des programmes publics, et/ou des budgets",null,null,null,null,null,null,"Turkey"]
["Veuillez sélectionner OUI pour toutes les options qui s’appliquent au focus des rôles de CARE sur sa contribution aux nouvelles politiques ou politiques amendées, législations, programmes publics, et/ou budgets",null,"Adoption d’une nouvelle politique","(Sélectionnez dans la liste)","Le plaidoyer contre les politiques préjudiciables","(Sélectionnez dans la liste)","Adoption d’un modèle/approche d’un programme de CARE","(Sélectionnez dans la liste)",null,null,"Turkmenistan"]
[null,null,"Mise en œuvre d’une politique existante","(Sélectionnez dans la liste)","Influencer les programmes nationaux et internationaux","(Sélectionnez dans la liste)","Influencer la participation du gouvernement dans les structures des politiques régionales/mondiales (ONU, OMS, etc.)","(Sélectionnez dans la liste)",null,null,"Tuvalu"]
[null,null,"Budget alloué pour une politique","(Sélectionnez dans la liste)","Autres (veuillez décrire):","(Sélectionnez dans la liste)",null,null,null,null,"Uganda"]
["Veuillez brièvement décrire le rôle de CARE dans la contribution à la rédaction des nouvelles politiques ou politiques amendées, des législations, des programmes publics, et/ou des budgets",null,null,null,null,null,null,null,null,null,"Ukraine"]
["Nombre de personnes dont les droits, les besoins et les requêtes ont été véhiculés à travers les nouvelles politiques ou politiques amendées, les législations, les programmes publics, et/ou les budgets",null," # total",null,"# des femmes et des filles \n",null,"# des hommes et des garçons ",null,null,null,"United Arab Emirates"]
["Veuillez décrire l’indicateur exacte que vous avez utilisé dans votre projet ou initiative, déclaré dans les lignes ci-dessus",null,null,null,"Veuillez nous faire part de tout autre commentaire que vous pourriez avoir concernant la déclaration de la contribution du projet à cet indicateur. Exemples : Des détails supplémentaires sur les données ci-dessus (p. ex. dates de la mesure), des données des mesures antérieures, des données avec un niveau de désagrégation différent (p. ex., âge, classe, race, etc.), des données qualitatives qui soutiennent ces données, etc.",null,null,null,null,null,"United Kingdom"]
[null,null,null,null,null,null,null,null,null,null,"United States of America"]
["Indicateur 21. % des personnes qui se sont activement engagées afin de réduire leur vulnérabilité face aux sources des chocs et des stress qui les affectent",null,null,null,null,null,null,null,null,null,"Uruguay"]
["Référence","% total des personnes qui se sont activement engagées afin de réduire leur vulnérabilité face aux sources des chocs et des stress qui les affectent, au sein de la population sur laquelle CARE envisage d'avoir un impact",null,"% total des femmes et des filles qui se sont activement engagées afin de réduire leur vulnérabilité face aux sources des chocs et des stress qui les affectent, au sein de la population sur laquelle CARE envisage d'avoir un impact",null,"% total des hommes et des garçons qui se sont activement engagées afin de réduire leur vulnérabilité face aux sources des chocs et des stress qui les affectent, au sein de la population sur laquelle CARE envisage d'avoir un impact",null,{"$f":"IF(AND(E199=\"\",G199=\"\"),\"\",IF(C199>G199,IF(C199>E199,\": Total % figure can't be higher than % for women and girls and/or % for men and boys\",\"\"),\"\"))","v":""},null,null,"Uzbekistan"]
[null,"# total des personnes au sein de la population sur laquelle CARE envisage d'avoir un impact",null,"# total des femmes au sein de la population sur laquelle CARE envisage d'avoir un impact",null,"# total des hommes au sein de la population sur laquelle CARE envisage d'avoir un impact",null,{"$f":"IF(AND(E200=\"\",G200=\"\"),\"\",IF(C200<(G200+E200),IF(C200<(G200+E200),\"Attention: le # total ne peut pas être inférieur à la somme du # des femmes et filles et/ou du # de hommes et garçons\",\"\"),\"\"))","v":""},null,null,"Vanuatu"]
["Dernière mesure pendant l’exercice fiscal",{"$f":"B199","v":"% total des personnes qui se sont activement engagées afin de réduire leur vulnérabilité face aux sources des chocs et des stress qui les affectent, au sein de la population sur laquelle CARE envisage d'avoir un impact"},null,{"$f":"D199","v":"% total des femmes et des filles qui se sont activement engagées afin de réduire leur vulnérabilité face aux sources des chocs et des stress qui les affectent, au sein de la population sur laquelle CARE envisage d'avoir un impact"},null,{"$f":"F199","v":"% total des hommes et des garçons qui se sont activement engagées afin de réduire leur vulnérabilité face aux sources des chocs et des stress qui les affectent, au sein de la population sur laquelle CARE envisage d'avoir un impact"},null,{"$f":"IF(AND(E201=\"\",G201=\"\"),\"\",IF(C201>G201,IF(C201>E201,\": Total % figure can't be higher than % for women and girls and/or % for men and boys\",\"\"),\"\"))","v":""},null,null,"Venezuela"]
[null,{"$f":"B200","v":"# total des personnes au sein de la population sur laquelle CARE envisage d'avoir un impact"},null,{"$f":"D200","v":"# total des femmes au sein de la population sur laquelle CARE envisage d'avoir un impact"},null,{"$f":"F200","v":"# total des hommes au sein de la population sur laquelle CARE envisage d'avoir un impact"},null,{"$f":"IF(AND(E202=\"\",G202=\"\"),\"\",IF(C202<(G202+E202),IF(C202<(G202+E202),\"Attention: le # total ne peut pas être inférieur à la somme du # des femmes et filles et/ou du # de hommes et garçons\",\"\"),\"\"))","v":""},null,null,"Vietnam"]
["Veuillez décrire l’indicateur exacte que vous avez utilisé dans votre projet ou initiative, déclaré dans les lignes ci-dessus",null,null,"Le nombre déclaré ci-dessus de la population d’impact inclut-il les membres de la famille ? ","Please share any additional comments you may have about the reporting of the project's contribution to this indicator. Examples: additional details on the data reported above (e.g. dates of the measurement), data from previous measurements, data with a different level of disaggregation (e.g. age, class, race, etc.), qualitative data supporting this data, etc. ",null,null,null,null,null,"West Bank and Gaza"]
[null,null,null,"(Sélectionnez dans la liste)",null,null,null,null,null,null,"Yemen"]
["La contribution aux cibles de la Stratégie du Programme 2020 de CARE :","Le nouvel impact total lié à cet indicateur\n(# des personnes supplémentaires qui se sont activement engagées afin de réduire leur vulnérabilité face aux sources des chocs et des stress qui les affectent)",null,{"$f":"C201*C202-C199*C202","v":0},"Le nouvel impact total orienté vers les cibles de Domaine de Résultat (y compris les membres de la famille)",null,null,{"$f":"IFERROR(IF(D204=\"NO\",D205*$E$13,D205),D205)","v":0},null,null,"Zambia"]
["Autres indicateurs relatifs au Genre, Gouvernance Inclusive ou Résilience : Veuillez déclarer les données ou tout autres indicateurs relatifs qui montrent les contributions de CARE et ses partenaires à l’Approche",null,null,null,null,null,null,null,null,null,"Zimbabwe"]
[]
["Section 3:  Informations sur l’Exercice Fiscal – Contribution Qualitative aux Résultats Globaux et Approche de CARE"]
["Pour que CARE et ses partenaires comprennent mieux comment le projet/initiative a contribué à l'impact quantitatif/résultats/changements rapportés ci-dessus, veuillez décrire les 3 raisons principales qui expliquent COMMENT et POURQUOI ces changements sont intervenus et COMMENT CARE et ses partenaires contribuent à ces changements (p. ex. les stratégies utilisées, les modèles innovés, etc.)."]
[]
[]
[]
["Merci d'avoir fourni les informations et rempli le formulaire!"]